{"text_format":"1","workbook":"xlsx","n_sheets":11,"sheets":["Skema 1","Skema 2","Skema 3","Skema 4","Skema 5","Skema 6","Skema 7","Rapport","Rapport SGH","Afstemning af ikke fordelte","Afstemning øvrige region"],"not_rendered":{"charts":0,"images":0,"macros":1,"external_links":0,"defined_names":20,"comments":0,"pivot_tables":0},"unopened":[],"bounds":{"document_bytes":16777216,"sheet_cells":100000,"rows_first":2000,"rows_last":500,"rows_between":2000,"halvings":0,"cell_chars":16384,"cell_head_chars":4096},"cells_cut":0,"cells_raw":0,"read":"whole","date_system":"1900"}

{"sheet":"Skema 1","index":0,"n_rows":95,"n_cols":9,"rows_kept":95,"cut":false,"hidden":false,"merged":[[1,1,2,8]]}
["Region Sjælland, somatiske sygehuse."]
[null,"Skema 1: Udgifter og indtægter på sygehusene/enhederne, eksklusiv omkostningssted 0001, Fælleskonto. (1.000 kr.)"]
[]
[]
["Sygehus",null,2023,2022,2021,2020,"Δ2022-2023","% afvigelse","Begrundelse"]
["Sjællands Universitetshospital"]
["Sjællands Universitetshospital","Hovedart 1: Lønninger",3173701.0294300001,3080401.5562099991,{"$f":"2753557.12516-48295.90261","v":2705261.2225499996},2541739.0923899999,{"$f":"IF(ISERROR(C7- D7)=TRUE,\"\",C7 - D7)","v":93299.473220000975},{"$f":"IF(ISERROR((((C7- D7)/D7)*100)=TRUE),\"\",IF((((C7- D7)/D7)*100)<-7,FIXED(((C7- D7)/D7)*100, 1,TRUE) &\"%\" & \"▼\",IF((((C7- D7)/D7)*100)>7,FIXED(((C7- D7)/D7)*100, 1,TRUE) &\"%\" &\"▲\",FIXED(((C7- D7)/D7)*100, 1,TRUE)&\"%\")))","v":"3,0%"}]
["Sjællands Universitetshospital","Hovedart 2: Varekøb",594974.01242000004,550804.53530000011,541201.40508000006,631843.64280999941,44169.477119999938,"8,0%▲","Forventeligt med høj inflation - øvrige lægelige artikler er steget meget"]
["Sjællands Universitetshospital","Hovedart 4: Tjenesteydelser m.v. ",552670.44756,454774.14821000007,378389.12677000009,303088.10350999993,97896.299349999928,"21,5%▲","Store udgifter til drift og vedligeholdelse - samt overførsel af projekter"]
["Sjællands Universitetshospital","Hovedart 5: Tilskud og overførsler",1874.83439,1826.78971,1049.5690400000001,1109.3633,48.044679999999971,"2,6%"]
["Sjællands Universitetshospital","Hovedart 6: Finansudgifter",500,0,0,-798.85357999999997,500,"","Ekstern projekt"]
["Sjællands Universitetshospital","Hovedart 7: Indtægter",-301200.66394,-208773.68598999991,-180307.45045999979,-146053.42226999992,-92426.977950000088,"44,3%▲","Øget indtægter til projekter"]
["Sjællands Universitetshospital","Hovedart 8: Finansindtægter",0,0,0,0,0,""]
["Sjællands Universitetshospital","Hovedart 9: Interne udgifter og indtægter",920414.27627999999,942844.42836999998,{"$f":"874632.75631+48295.90261","v":922928.65891999996},934799.78619999962,-22430.152089999989,"-2,4%"]
["Sjællands Universitetshospital","I alt",{"$f":"SUMIFS((C7:C14),(A7:A14),A15)","v":4942933.9361400008},{"$f":"SUMIFS((D7:D14),(A7:A14),A15)","v":4821877.7718099998},{"$f":"SUMIFS((E7:E14),(A7:A14),A15)","v":4368522.5318999998},{"$f":"SUMIFS((F7:F14),(A7:A14),A15)","v":4265727.7123599984},121056.16433000099,"2,5%"]
["Holbæk Sygehus",null,null,null,null,null,0,""]
["Holbæk Sygehus","Hovedart 1: Lønninger",1002045.47648,1005716.8502400001,962066.31391000014,910767.69867000019,-3671.3737600001041,"-0,4%"]
["Holbæk Sygehus","Hovedart 2: Varekøb",132139.32433999999,154467.31750999999,139532.83794,136409.63801999998,-22327.993170000002,"-14,5%▼","Tilbage på 2021-niveau"]
["Holbæk Sygehus","Hovedart 4: Tjenesteydelser m.v. ",68918.604439999996,108581.65945000001,97675.575739999971,90752.19551999995,-39663.055010000011,"-36,5%▼","Reduktion i interneprojekter samt ophør med brug af eksterne vikar mm"]
["Holbæk Sygehus","Hovedart 5: Tilskud og overførsler",1196.0500500000001,1004.1877099999999,802.44637,831.37576000000001,191.86234000000013,"19,1%▲","Refusion til patienter (strøm m.m.) er steget, pga. stigende elpriser"]
["Holbæk Sygehus","Hovedart 6: Finansudgifter",-24.22,0,0,-394.75545,-24.22,""]
["Holbæk Sygehus","Hovedart 7: Indtægter",-31824.89761,-41997.306640000003,-29781.599950000014,-27166.286,10172.409030000003,"-24,2%▼","Sanering i interneprojekter i forbindelse med regnskabafslutning"]
["Holbæk Sygehus","Hovedart 8: Finansindtægter",-478.39800000000002,0,0,0,-478.39800000000002,""]
["Holbæk Sygehus","Hovedart 9: Interne udgifter og indtægter",115032.41274,115534.81218000001,111182.08326999997,109531.68833000003,-502.39944000000833,"-0,4%"]
["Holbæk Sygehus","I alt",{"$f":"SUMIFS((C7:C24),(A7:A24),A25)","v":1287004.3524399998},{"$f":"SUMIFS((D7:D24),(A7:A24),A25)","v":1343307.5204499997},{"$f":"SUMIFS((E7:E24),(A7:A24),A25)","v":1281477.6572800002},{"$f":"SUMIFS((F7:F24),(A7:A24),A25)","v":1220731.55485},-56303.168009999907,"-4,2%"]
["Næstved, Slagelse og Ringsted Sygehuse",null,null,null,null,null,0,""]
["Næstved, Slagelse og Ringsted Sygehuse","Hovedart 1: Lønninger",1566139.395,1536399.0345399999,1549017,1497032.34668,29740.360460000113,"1,9%"]
["Næstved, Slagelse og Ringsted Sygehuse","Hovedart 2: Varekøb",230381.83499999999,237033.56890000001,262034,257803.82547000001,-6651.7339000000211,"-2,8%"]
["Næstved, Slagelse og Ringsted Sygehuse","Hovedart 4: Tjenesteydelser m.v. ",258335.56400000001,265685.46385,295395,236139.03578000001,-7349.8998499999871,"-2,8%"]
["Næstved, Slagelse og Ringsted Sygehuse","Hovedart 5: Tilskud og overførsler",726.84686999999997,680.54123000000004,809,691.05367999999999,46.305639999999926,"6,8%"]
["Næstved, Slagelse og Ringsted Sygehuse","Hovedart 6: Finansudgifter",0,0,-2992,2411.63355,0,""]
["Næstved, Slagelse og Ringsted Sygehuse","Hovedart 7: Indtægter",-69827.217000000004,-32819.727059999997,-77647,-57874.623039999999,-37007.489940000007,"112,8%▲","Sædvanlig energirefusion fra SKAT blev ikke modtaget i 2022. "]
["Næstved, Slagelse og Ringsted Sygehuse","Hovedart 8: Finansindtægter",0,0,0,null,0,""]
["Næstved, Slagelse og Ringsted Sygehuse","Hovedart 9: Interne udgifter og indtægter",111849.19500000001,141629.60558,144166,141860.79109000001,-29780.410579999996,"-21,0%▼","Forklaringen findes i en ændret metode, der findes derfor ikke en nævneværdig begrundelse. "]
["Næstved, Slagelse og Ringsted Sygehuse","I alt",{"$f":"SUMIFS((C7:C34),(A7:A34),A35)","v":2097605.6188699999},{"$f":"SUMIFS((D7:D34),(A7:A34),A35)","v":2148608.48704},{"$f":"SUMIFS((E7:E34),(A7:A34),A35)","v":2170782},{"$f":"SUMIFS((F7:F34),(A7:A34),A35)","v":2078064.0632099998},-51002.868170000147,"-2,4%"]
["Nykøbing F.  Sygehus",null,null,null,null,null,0,""]
["Nykøbing F.  Sygehus","Hovedart 1: Lønninger",701894.03,680398.61899999995,697686.92173000006,{"$f":"673668147.79/1000","v":673668.14778999996},21495.41100000008,"3,2%"]
["Nykøbing F.  Sygehus","Hovedart 2: Varekøb",84683.264999999999,89569.75,85078.303799999994,{"$f":"89450161.66/1000","v":89450.161659999998},-4886.4850000000006,"-5,5%"]
["Nykøbing F.  Sygehus","Hovedart 4: Tjenesteydelser m.v. ",101440.11599999999,112257.22500000001,94845.534889999995,{"$f":"78024031.01/1000","v":78024.031010000006},{"$f":"IF(ISERROR(C39- D39)=TRUE,\"\",C39 - D39)","v":-10817.109000000011},{"$f":"IF(ISERROR((((C39- D39)/D39)*100)=TRUE),\"\",IF((((C39- D39)/D39)*100)<-7,FIXED(((C39- D39)/D39)*100, 1,TRUE) &\"%\" & \"▼\",IF((((C39- D39)/D39)*100)>7,FIXED(((C39- D39)/D39)*100, 1,TRUE) &\"%\" &\"▲\",FIXED(((C39- D39)/D39)*100, 1,TRUE)&\"%\")))","v":"-9,6%▼"},"Vikarer"]
["Nykøbing F.  Sygehus","Hovedart 5: Tilskud og overførsler",972.69600000000003,805,598.03931,{"$f":"637459.65/1000","v":637.45965000000001},167.69600000000003,"20,8%▲","Øgede strømpriser inkl. transport af el. "]
["Nykøbing F.  Sygehus","Hovedart 6: Finansudgifter",null,0,0,{"$f":"-556217.29/1000","v":-556.21729000000005},0,""]
["Nykøbing F.  Sygehus","Hovedart 7: Indtægter",-19568.504000000001,-16905.199000000001,-20996.731660000001,{"$f":"-23525707.67/1000","v":-23525.707670000003},-2663.3050000000003,"15,8%▲","Skyldes bl.a. huslejestigninger"]
["Nykøbing F.  Sygehus","Hovedart 8: Finansindtægter",null,0,null,null,0,""]
["Nykøbing F.  Sygehus","Hovedart 9: Interne udgifter og indtægter",66477.006999999998,55783.413999999997,58149.268149999996,{"$f":"57186149.05/1000","v":57186.14905},10693.593000000001,"19,2%▲","Internt vikarkorps"]
["Nykøbing F.  Sygehus","I alt",{"$f":"SUMIFS((C7:C44),(A7:A44),A45)","v":935898.6100000001},{"$f":"SUMIFS((D7:D44),(A7:A44),A45)","v":921908.80899999989},{"$f":"SUMIFS((E7:E44),(A7:A44),A45)","v":915361.33622000006},{"$f":"SUMIFS((F7:F44),(A7:A44),A45)","v":874884.02419999999},13989.80100000021,"1,5%"]
["Sygehus Nord",null,null,null,null,null,0,""]
["Sygehus Nord","Hovedart 1: Lønninger",null,null,null,null,0,""]
["Sygehus Nord","Hovedart 2: Varekøb",null,null,null,null,0,""]
["Sygehus Nord","Hovedart 4: Tjenesteydelser m.v. ",null,null,null,null,0,""]
["Sygehus Nord","Hovedart 5: Tilskud og overførsler",null,null,null,null,0,""]
["Sygehus Nord","Hovedart 6: Finansudgifter",null,null,null,null,0,""]
["Sygehus Nord","Hovedart 7: Indtægter",null,null,null,null,0,""]
["Sygehus Nord","Hovedart 8: Finansindtægter",null,null,null,null,0,""]
["Sygehus Nord","Hovedart 9: Interne udgifter og indtægter",null,null,null,null,0,""]
["Sygehus Nord","I alt",{"$f":"SUMIFS((C7:C54),(A7:A54),A55)","v":0},{"$f":"SUMIFS((D7:D54),(A7:A54),A55)","v":0},{"$f":"SUMIFS((E7:E54),(A7:A54),A55)","v":0},{"$f":"SUMIFS((F7:F54),(A7:A54),A55)","v":0},0,""]
["Sygehus Syd",null,null,null,null,null,0,""]
["Sygehus Syd","Hovedart 1: Lønninger",null,null,null,null,0,""]
["Sygehus Syd","Hovedart 2: Varekøb",null,null,null,null,0,""]
["Sygehus Syd","Hovedart 4: Tjenesteydelser m.v. ",null,null,null,null,0,""]
["Sygehus Syd","Hovedart 5: Tilskud og overførsler",null,null,null,null,0,""]
["Sygehus Syd","Hovedart 6: Finansudgifter",null,null,null,null,0,""]
["Sygehus Syd","Hovedart 7: Indtægter",null,null,null,null,0,""]
["Sygehus Syd","Hovedart 8: Finansindtægter",null,null,null,null,0,""]
["Sygehus Syd","Hovedart 9: Interne udgifter og indtægter",null,null,null,null,0,""]
["Sygehus Syd","I alt",{"$f":"SUMIFS((C7:C64),(A7:A64),A65)","v":0},{"$f":"SUMIFS((D7:D64),(A7:A64),A65)","v":0},{"$f":"SUMIFS((E7:E64),(A7:A64),A65)","v":0},{"$f":"SUMIFS((F7:F64),(A7:A64),A65)","v":0},0,""]
["Garantiklinikken",null,null,null,null,null,0,""]
["Garantiklinikken","Hovedart 1: Lønninger",null,null,null,null,0,""]
["Garantiklinikken","Hovedart 2: Varekøb",null,null,null,null,0,""]
["Garantiklinikken","Hovedart 4: Tjenesteydelser m.v. ",null,null,null,null,0,""]
["Garantiklinikken","Hovedart 5: Tilskud og overførsler",null,null,null,null,0,""]
["Garantiklinikken","Hovedart 6: Finansudgifter",null,null,null,null,{"$f":"IF(ISERROR(C71- D71)=TRUE,\"\",C71 - D71)","v":0},{"$f":"IF(ISERROR((((C71- D71)/D71)*100)=TRUE),\"\",IF((((C71- D71)/D71)*100)<-7,FIXED(((C71- D71)/D71)*100, 1,TRUE) &\"%\" & \"▼\",IF((((C71- D71)/D71)*100)>7,FIXED(((C71- D71)/D71)*100, 1,TRUE) &\"%\" &\"▲\",FIXED(((C71- D71)/D71)*100, 1,TRUE)&\"%\")))","v":""}]
["Garantiklinikken","Hovedart 7: Indtægter",null,null,null,null,0,""]
["Garantiklinikken","Hovedart 8: Finansindtægter",null,null,null,null,0,""]
["Garantiklinikken","Hovedart 9: Interne udgifter og indtægter",null,null,null,null,0,""]
["Garantiklinikken","I alt",{"$f":"SUMIFS((C7:C74),(A7:A74),A75)","v":0},{"$f":"SUMIFS((D7:D74),(A7:A74),A75)","v":0},{"$f":"SUMIFS((E7:E74),(A7:A74),A75)","v":0},{"$f":"SUMIFS((F7:F74),(A7:A74),A75)","v":0},0,""]
["Øvrige i Region Sjælland",null,null,null,null,null,0,""]
["Øvrige i Region Sjælland","Hovedart 1: Lønninger",null,null,null,null,0,""]
["Øvrige i Region Sjælland","Hovedart 2: Varekøb",null,null,null,null,0,""]
["Øvrige i Region Sjælland","Hovedart 4: Tjenesteydelser m.v. ",null,null,null,null,0,""]
["Øvrige i Region Sjælland","Hovedart 5: Tilskud og overførsler",null,null,null,null,0,""]
["Øvrige i Region Sjælland","Hovedart 6: Finansudgifter",null,null,null,null,0,""]
["Øvrige i Region Sjælland","Hovedart 7: Indtægter",null,null,null,null,0,""]
["Øvrige i Region Sjælland","Hovedart 8: Finansindtægter",null,null,null,null,0,""]
["Øvrige i Region Sjælland","Hovedart 9: Interne udgifter og indtægter",null,null,null,null,0,""]
["Øvrige i Region Sjælland","I alt",{"$f":"SUMIFS((C7:C84),(A7:A84),A85)","v":0},{"$f":"SUMIFS((D7:D84),(A7:A84),A85)","v":0},{"$f":"SUMIFS((E7:E84),(A7:A84),A85)","v":0},{"$f":"SUMIFS((F7:F84),(A7:A84),A85)","v":0},0,""]
["Ikke fordelte udgifter og indtægter",null,null,null,null,null,0,""]
["Ikke fordelte udgifter og indtægter","Hovedart 1: Lønninger",null,null,null,null,0,""]
["Ikke fordelte udgifter og indtægter","Hovedart 2: Varekøb",null,null,null,null,0,""]
["Ikke fordelte udgifter og indtægter","Hovedart 4: Tjenesteydelser m.v. ",null,null,null,null,0,""]
["Ikke fordelte udgifter og indtægter","Hovedart 5: Tilskud og overførsler",null,null,null,null,0,""]
["Ikke fordelte udgifter og indtægter","Hovedart 6: Finansudgifter",null,null,null,null,0,""]
["Ikke fordelte udgifter og indtægter","Hovedart 7: Indtægter",null,null,null,null,0,""]
["Ikke fordelte udgifter og indtægter","Hovedart 8: Finansindtægter",null,null,null,null,0,""]
["Ikke fordelte udgifter og indtægter","Hovedart 9: Interne udgifter og indtægter",null,null,null,null,0,""]
["Ikke fordelte udgifter og indtægter","I alt",{"$f":"SUMIFS((C7:C94),(A7:A94),A95)","v":0},{"$f":"SUMIFS((D7:D94),(A7:A94),A95)","v":0},{"$f":"SUMIFS((E7:E94),(A7:A94),A95)","v":0},{"$f":"SUMIFS((F7:F94),(A7:A94),A95)","v":0},0,""]

{"sheet":"Skema 2","index":1,"n_rows":95,"n_cols":9,"rows_kept":95,"cut":false,"hidden":false,"merged":[[1,1,2,8]]}
["Region Sjælland, somatiske sygehuse."]
[null,"Skema 2: Fællesudgifter og -indtægter vedrørende sygehusene.\n(1.000 kr.)"]
[]
[]
["Sygehus",null,2023,2022,2021,2020,"Δ2022-2023","% afvigelse","Begrundelse"]
["Sjællands Universitetshospital"]
["Sjællands Universitetshospital","Hovedart 1: Lønninger",{"$f":"151184224.817591/1000","v":151184.22481759102},126974.271926373,139625.68739000001,128775.0130791,{"$f":"IF(ISERROR(C7- D7)=TRUE,\"\",C7 - D7)","v":24209.952891218025},{"$f":"IF(ISERROR((((C7- D7)/D7)*100)=TRUE),\"\",IF((((C7- D7)/D7)*100)<-7,FIXED(((C7- D7)/D7)*100, 1,TRUE) &\"%\" & \"▼\",IF((((C7- D7)/D7)*100)>7,FIXED(((C7- D7)/D7)*100, 1,TRUE) &\"%\" &\"▲\",FIXED(((C7- D7)/D7)*100, 1,TRUE)&\"%\")))","v":"19,1%▲"},"Se note 1"]
["Sjællands Universitetshospital","Hovedart 2: Varekøb",490933.943689065,473439.26334406697,422847.99826000002,426154.6633593,17494.680344998022,"3,7%"]
["Sjællands Universitetshospital","Hovedart 4: Tjenesteydelser m.v. ",194379.526362726,168956.65027313499,162524.70097000001,159767.8211993,25422.876089591009,"15,0%▲","Se note 2"]
["Sjællands Universitetshospital","Hovedart 5: Tilskud og overførsler",null,null,436.15579000000002,437.23387020000001,0,""]
["Sjællands Universitetshospital","Hovedart 6: Finansudgifter",null,null,0,-58.489932500000002,0,""]
["Sjællands Universitetshospital","Hovedart 7: Indtægter",-53486.211397356899,-52650.762884332697,-52907.477469999998,-43896.571043600001,-835.44851302420284,"1,6%"]
["Sjællands Universitetshospital","Hovedart 8: Finansindtægter",-199.09821642234701,null,null,null,-199.09821642234701,""]
["Sjællands Universitetshospital","Hovedart 9: Interne udgifter og indtægter",-534466.44411657704,-512698.37717361102,-486821.84219,-489779.2328694,-21768.066942966019,"4,2%"]
["Sjællands Universitetshospital","I alt",{"$f":"SUMIFS((C7:C14),(A7:A14),A15)","v":248345.94113902573},{"$f":"SUMIFS((D7:D14),(A7:A14),A15)","v":204021.04548563116},{"$f":"SUMIFS((E7:E14),(A7:A14),A15)","v":185705.22274999996},{"$f":"SUMIFS((F7:F14),(A7:A14),A15)","v":181400.43766240013},44324.895653394575,"21,7%▲"]
["Holbæk Sygehus",null,null,null,null,null,0,""]
["Holbæk Sygehus","Hovedart 1: Lønninger",49585.434318222702,45852.7713368568,53495.301489999998,49043.603846500002,3732.6629813659019,"8,1%▲","Se note 1"]
["Holbæk Sygehus","Hovedart 2: Varekøb",146243.359787391,153377.72763598,147451.06645000001,145717.99899550001,-7134.3678485889977,"-4,7%"]
["Holbæk Sygehus","Hovedart 4: Tjenesteydelser m.v. ",64580.4012832234,62510.362426770298,62238.96211,57116.6573441,2070.0388564531022,"3,3%"]
["Holbæk Sygehus","Hovedart 5: Tilskud og overførsler",null,null,145.54545999999999,143.3118163,0,""]
["Holbæk Sygehus","Hovedart 6: Finansudgifter",null,null,null,-19.171201100000001,0,""]
["Holbæk Sygehus","Hovedart 7: Indtægter",-16769.624973734899,-17679.9130576303,-18867.417799999999,-15543.997384099999,910.28808389540063,"-5,1%"]
["Holbæk Sygehus","Hovedart 8: Finansindtægter",-55.769468778934502,null,null,null,-55.769468778934502,""]
["Holbæk Sygehus","Hovedart 9: Interne udgifter og indtægter",-168781.826224043,-173779.06318678401,-177005.15229,-174320.68806370001,4997.236962741008,"-2,9%"]
["Holbæk Sygehus","I alt",{"$f":"SUMIFS((C7:C24),(A7:A24),A25)","v":74801.974722280283},{"$f":"SUMIFS((D7:D24),(A7:A24),A25)","v":70281.88515519278},{"$f":"SUMIFS((E7:E24),(A7:A24),A25)","v":67458.305420000048},{"$f":"SUMIFS((F7:F24),(A7:A24),A25)","v":62137.71535350004},4520.0895670875034,"6,4%"]
["Næstved, Slagelse og Ringsted Sygehuse",null,null,null,null,null,0,""]
["Næstved, Slagelse og Ringsted Sygehuse","Hovedart 1: Lønninger",82261.081361511795,74903.998415091803,88248.356920000006,82373.905760499998,7357.0829464199924,"9,8%▲","Se note 1"]
["Næstved, Slagelse og Ringsted Sygehuse","Hovedart 2: Varekøb",237423.647202925,240318.927861751,244608.15444000001,245192.94940680001,-2895.2806588259991,"-1,2%"]
["Næstved, Slagelse og Ringsted Sygehuse","Hovedart 4: Tjenesteydelser m.v. ",114057.445939718,111333.94635514299,109887.82825999999,100753.4269244,2723.4995845750091,"2,4%"]
["Næstved, Slagelse og Ringsted Sygehuse","Hovedart 5: Tilskud og overførsler",null,null,248.12979999999999,246.43362049999999,0,""]
["Næstved, Slagelse og Ringsted Sygehuse","Hovedart 6: Finansudgifter",null,null,null,-32.966077900000002,0,""]
["Næstved, Slagelse og Ringsted Sygehuse","Hovedart 7: Indtægter",-26505.896680576199,-27382.415622664201,-30867.70076,-25595.582153300002,876.51894208800149,"-3,2%"]
["Næstved, Slagelse og Ringsted Sygehuse","Hovedart 8: Finansindtægter",-92.264700663042305,null,null,null,-92.264700663042305,""]
["Næstved, Slagelse og Ringsted Sygehuse","Hovedart 9: Interne udgifter og indtægter",-270463.29796162603,-271688.01482262899,-286458.71529000002,-288670.22319829999,1224.7168610029621,"-0,5%"]
["Næstved, Slagelse og Ringsted Sygehuse","I alt",{"$f":"SUMIFS((C7:C34),(A7:A34),A35)","v":136680.7151612895},{"$f":"SUMIFS((D7:D34),(A7:A34),A35)","v":127486.44218669261},{"$f":"SUMIFS((E7:E34),(A7:A34),A35)","v":125666.05336999998},{"$f":"SUMIFS((F7:F34),(A7:A34),A35)","v":114267.94428270002},9194.2729745968827,"7,2%▲"]
["Nykøbing F.  Sygehus",null,null,null,null,null,0,""]
["Nykøbing F.  Sygehus","Hovedart 1: Lønninger",36554.964935600998,32131.8919757076,38307.095220000003,36102.173736199999,4423.0729598933976,"13,8%▲","Se note 1"]
["Nykøbing F.  Sygehus","Hovedart 2: Varekøb",107026.84768293799,105010.22645171201,105440.50967,106377.9810519,2016.6212312259886,"1,9%"]
["Nykøbing F.  Sygehus","Hovedart 4: Tjenesteydelser m.v. ",48411.692957027699,45424.512569524297,45013.792150000001,41355.931286599996,{"$f":"IF(ISERROR(C39- D39)=TRUE,\"\",C39 - D39)","v":2987.180387503402},{"$f":"IF(ISERROR((((C39- D39)/D39)*100)=TRUE),\"\",IF((((C39- D39)/D39)*100)<-7,FIXED(((C39- D39)/D39)*100, 1,TRUE) &\"%\" & \"▼\",IF((((C39- D39)/D39)*100)>7,FIXED(((C39- D39)/D39)*100, 1,TRUE) &\"%\" &\"▲\",FIXED(((C39- D39)/D39)*100, 1,TRUE)&\"%\")))","v":"6,6%"}]
["Nykøbing F.  Sygehus","Hovedart 5: Tilskud og overførsler",null,null,104.61055,105.4068158,0,""]
["Nykøbing F.  Sygehus","Hovedart 6: Finansudgifter",null,null,null,-14.1005488,0,""]
["Nykøbing F.  Sygehus","Hovedart 7: Indtægter",-12033.301980344901,-11932.8436365489,-13310.56179,-11175.7307743,-100.45834379600092,"0,8%"]
["Nykøbing F.  Sygehus","Hovedart 8: Finansindtægter",-40.984466895743701,null,null,null,-40.984466895743701,""]
["Nykøbing F.  Sygehus","Hovedart 9: Interne udgifter og indtægter",-123226.23218316599,-119761.780248368,-125974.00109999999,-127919.64814239999,-3464.4519347979949,"2,9%"]
["Nykøbing F.  Sygehus","I alt",{"$f":"SUMIFS((C7:C44),(A7:A44),A45)","v":56692.986945160053},{"$f":"SUMIFS((D7:D44),(A7:A44),A45)","v":50872.007112026986},{"$f":"SUMIFS((E7:E44),(A7:A44),A45)","v":49581.444700000022},{"$f":"SUMIFS((F7:F44),(A7:A44),A45)","v":44832.013425000012},5820.9798331330676,"11,4%▲"]
["Sygehus Nord",null,null,null,null,null,0,""]
["Sygehus Nord","Hovedart 1: Lønninger",null,null,null,null,0,""]
["Sygehus Nord","Hovedart 2: Varekøb",null,null,null,null,0,""]
["Sygehus Nord","Hovedart 4: Tjenesteydelser m.v. ",null,null,null,null,0,""]
["Sygehus Nord","Hovedart 5: Tilskud og overførsler",null,null,null,null,0,""]
["Sygehus Nord","Hovedart 6: Finansudgifter",null,null,null,null,0,""]
["Sygehus Nord","Hovedart 7: Indtægter",null,null,null,null,0,""]
["Sygehus Nord","Hovedart 8: Finansindtægter",null,null,null,null,0,""]
["Sygehus Nord","Hovedart 9: Interne udgifter og indtægter",null,null,null,null,0,""]
["Sygehus Nord","I alt",{"$f":"SUMIFS((C7:C54),(A7:A54),A55)","v":0},{"$f":"SUMIFS((D7:D54),(A7:A54),A55)","v":0},{"$f":"SUMIFS((E7:E54),(A7:A54),A55)","v":0},{"$f":"SUMIFS((F7:F54),(A7:A54),A55)","v":0},0,""]
["Sygehus Syd",null,null,null,null,null,0,""]
["Sygehus Syd","Hovedart 1: Lønninger",null,null,null,null,0,""]
["Sygehus Syd","Hovedart 2: Varekøb",null,null,null,null,0,""]
["Sygehus Syd","Hovedart 4: Tjenesteydelser m.v. ",null,null,null,null,0,""]
["Sygehus Syd","Hovedart 5: Tilskud og overførsler",null,null,null,null,0,""]
["Sygehus Syd","Hovedart 6: Finansudgifter",null,null,null,null,0,""]
["Sygehus Syd","Hovedart 7: Indtægter",null,null,null,null,0,""]
["Sygehus Syd","Hovedart 8: Finansindtægter",null,null,null,null,0,""]
["Sygehus Syd","Hovedart 9: Interne udgifter og indtægter",null,null,null,null,0,""]
["Sygehus Syd","I alt",{"$f":"SUMIFS((C7:C64),(A7:A64),A65)","v":0},{"$f":"SUMIFS((D7:D64),(A7:A64),A65)","v":0},{"$f":"SUMIFS((E7:E64),(A7:A64),A65)","v":0},{"$f":"SUMIFS((F7:F64),(A7:A64),A65)","v":0},0,""]
["Garantiklinikken",null,null,null,null,null,0,""]
["Garantiklinikken","Hovedart 1: Lønninger",null,null,null,null,0,""]
["Garantiklinikken","Hovedart 2: Varekøb",null,null,null,null,0,""]
["Garantiklinikken","Hovedart 4: Tjenesteydelser m.v. ",null,null,null,null,0,""]
["Garantiklinikken","Hovedart 5: Tilskud og overførsler",null,null,null,null,0,""]
["Garantiklinikken","Hovedart 6: Finansudgifter",null,null,null,null,{"$f":"IF(ISERROR(C71- D71)=TRUE,\"\",C71 - D71)","v":0},{"$f":"IF(ISERROR((((C71- D71)/D71)*100)=TRUE),\"\",IF((((C71- D71)/D71)*100)<-7,FIXED(((C71- D71)/D71)*100, 1,TRUE) &\"%\" & \"▼\",IF((((C71- D71)/D71)*100)>7,FIXED(((C71- D71)/D71)*100, 1,TRUE) &\"%\" &\"▲\",FIXED(((C71- D71)/D71)*100, 1,TRUE)&\"%\")))","v":""}]
["Garantiklinikken","Hovedart 7: Indtægter",null,null,null,null,0,""]
["Garantiklinikken","Hovedart 8: Finansindtægter",null,null,null,null,0,""]
["Garantiklinikken","Hovedart 9: Interne udgifter og indtægter",null,null,null,null,0,""]
["Garantiklinikken","I alt",{"$f":"SUMIFS((C7:C74),(A7:A74),A75)","v":0},{"$f":"SUMIFS((D7:D74),(A7:A74),A75)","v":0},{"$f":"SUMIFS((E7:E74),(A7:A74),A75)","v":0},{"$f":"SUMIFS((F7:F74),(A7:A74),A75)","v":0},0,""]
["Øvrige i Region Sjælland",null,null,null,null,null,0,""]
["Øvrige i Region Sjælland","Hovedart 1: Lønninger",null,null,null,null,0,""]
["Øvrige i Region Sjælland","Hovedart 2: Varekøb",null,null,null,null,0,""]
["Øvrige i Region Sjælland","Hovedart 4: Tjenesteydelser m.v. ",null,null,null,null,0,""]
["Øvrige i Region Sjælland","Hovedart 5: Tilskud og overførsler",null,null,null,null,0,""]
["Øvrige i Region Sjælland","Hovedart 6: Finansudgifter",null,null,null,null,0,""]
["Øvrige i Region Sjælland","Hovedart 7: Indtægter",null,null,null,null,0,""]
["Øvrige i Region Sjælland","Hovedart 8: Finansindtægter",null,null,null,null,0,""]
["Øvrige i Region Sjælland","Hovedart 9: Interne udgifter og indtægter",null,null,null,null,0,""]
["Øvrige i Region Sjælland","I alt",{"$f":"SUMIFS((C7:C84),(A7:A84),A85)","v":0},{"$f":"SUMIFS((D7:D84),(A7:A84),A85)","v":0},{"$f":"SUMIFS((E7:E84),(A7:A84),A85)","v":0},{"$f":"SUMIFS((F7:F84),(A7:A84),A85)","v":0},0,""]
["Ikke fordelte udgifter og indtægter",null,null,null,null,null,0,""]
["Ikke fordelte udgifter og indtægter","Hovedart 1: Lønninger",594052.59063084901,688666.53289978195,871511.53555999999,474314.43615000002,-94613.942268932937,"-13,7%▼"," "]
["Ikke fordelte udgifter og indtægter","Hovedart 2: Varekøb",118603.950977998,174907.98609063,308125.35106000002,217901.28122999999,-56304.035112632002,"-32,2%▼","Se note 3"]
["Ikke fordelte udgifter og indtægter","Hovedart 4: Tjenesteydelser m.v. ",3936888.7220317302,4403309.5397280604,3938689.4647300001,3816983.9714799998,-466420.81769633014,"-10,6%▼","Se note 3"]
["Ikke fordelte udgifter og indtægter","Hovedart 5: Tilskud og overførsler",144576.64274000001,199988.08454000001,128635.53101000001,133259.91052,-55411.441800000001,"-27,7%▼","Se note 3"]
["Ikke fordelte udgifter og indtægter","Hovedart 6: Finansudgifter",null,0.31,-146.76027999999999,null,-0.31,"-100,0%▼"]
["Ikke fordelte udgifter og indtægter","Hovedart 7: Indtægter",-566565.37503802602,-929859.44956600002,-1032198.37996,-442317.46003000002,363294.07452797401,"-39,1%▼","Se note 3"]
["Ikke fordelte udgifter og indtægter","Hovedart 8: Finansindtægter",null,null,null,-69600,0,""]
["Ikke fordelte udgifter og indtægter","Hovedart 9: Interne udgifter og indtægter",-126917.83232914199,-111364.70222835999,-95234.482239999998,-102756.75750000001,-15553.130100782,"14,0%▲","Se note 3"]
["Ikke fordelte udgifter og indtægter","I alt",{"$f":"SUMIFS((C7:C94),(A7:A94),A95)","v":4100638.6990134092},{"$f":"SUMIFS((D7:D94),(A7:A94),A95)","v":4425648.3014641125},{"$f":"SUMIFS((E7:E94),(A7:A94),A95)","v":4119382.2598799998},{"$f":"SUMIFS((F7:F94),(A7:A94),A95)","v":4027785.3818500009},-325009.60245070327,"-7,3%▼"]

{"sheet":"Skema 3","index":2,"n_rows":68,"n_cols":9,"rows_kept":68,"cut":false,"hidden":false,"merged":[[1,1,2,8]]}
["Region Sjælland, somatiske sygehuse."]
[null,"Skema 3: Regionale fællesudgifter og -indtægter. (1.000 kr.)"]
[]
[]
["Sygehus",null,2023,2022,2021,2020,"Δ2022-2023","% afvigelse","Begrundelse"]
["Sjællands Universitetshospital"]
["Sjællands Universitetshospital","1.70.50: Andel af fællesudgifter",261465.71746755499,244166.816799742,211707.38879,201968.7588564,{"$f":"IF(ISERROR(C7- D7)=TRUE,\"\",C7 - D7)","v":17298.900667812995},{"$f":"IF(ISERROR((((C7- D7)/D7)*100)=TRUE),\"\",IF((((C7- D7)/D7)*100)<-7,FIXED(((C7- D7)/D7)*100, 1,TRUE) &\"%\" & \"▼\",IF((((C7- D7)/D7)*100)>7,FIXED(((C7- D7)/D7)*100, 1,TRUE) &\"%\" &\"▲\",FIXED(((C7- D7)/D7)*100, 1,TRUE)&\"%\")))","v":"7,1%▲"},"Se note 4"]
["Sjællands Universitetshospital","1.60.40: Andel af central administration af sundhed (til og med 2019)",null,null,null,null,0,""]
["Sjællands Universitetshospital","1.60.41: Andel af øvrige udgifter og indtægter",null,null,null,null,0,""]
["Sjællands Universitetshospital","1.50.33: Andel af central administration af sundhed (ekskl. psykiatri)",null,null,null,null,0,""]
["Sjællands Universitetshospital","1.50.35: Administration af det psykiatriske område (kun central del)",null,null,null,null,0,""]
["Sjællands Universitetshospital","I alt",{"$f":"SUMIFS((C7:C11),(A7:A11),A12)","v":261465.71746755499},{"$f":"SUMIFS((D7:D11),(A7:A11),A12)","v":244166.816799742},{"$f":"SUMIFS((E7:E11),(A7:A11),A12)","v":211707.38879},{"$f":"SUMIFS((F7:F11),(A7:A11),A12)","v":201968.7588564},17298.900667812995,"7,1%▲"]
["Holbæk Sygehus",null,null,null,null,null,0,""]
["Holbæk Sygehus","1.70.50: Andel af fællesudgifter",74920.984087099598,77112.207855941801,69383.785499999998,67719.3056698,-2191.2237688422028,"-2,8%","Se note 5"]
["Holbæk Sygehus","1.60.40: Andel af central administration af sundhed (til og med 2019)",null,null,null,null,0,""]
["Holbæk Sygehus","1.60.41: Andel af øvrige udgifter og indtægter",null,null,null,null,0,""]
["Holbæk Sygehus","1.50.33: Andel af central administration af sundhed (ekskl. psykiatri)",null,null,null,null,0,""]
["Holbæk Sygehus","1.50.35: Administration af det psykiatriske område (kun central del)",null,null,null,null,0,""]
["Holbæk Sygehus","I alt",{"$f":"SUMIFS((C7:C18),(A7:A18),A19)","v":74920.984087099598},{"$f":"SUMIFS((D7:D18),(A7:A18),A19)","v":77112.207855941801},{"$f":"SUMIFS((E7:E18),(A7:A18),A19)","v":69383.785499999998},{"$f":"SUMIFS((F7:F18),(A7:A18),A19)","v":67719.3056698},-2191.2237688422028,"-2,8%"]
["Næstved, Slagelse og Ringsted Sygehuse",null,null,null,null,null,0,""]
["Næstved, Slagelse og Ringsted Sygehuse","1.70.50: Andel af fællesudgifter",117145.40007536999,115937.23109742699,112584.80723000001,108393.2538322,1208.1689779430017,"1,0%"]
["Næstved, Slagelse og Ringsted Sygehuse","1.60.40: Andel af central administration af sundhed (til og med 2019)",null,null,null,null,0,""]
["Næstved, Slagelse og Ringsted Sygehuse","1.60.41: Andel af øvrige udgifter og indtægter",null,null,null,null,0,""]
["Næstved, Slagelse og Ringsted Sygehuse","1.50.33: Andel af central administration af sundhed (ekskl. psykiatri)",null,null,null,null,0,""]
["Næstved, Slagelse og Ringsted Sygehuse","1.50.35: Administration af det psykiatriske område (kun central del)",null,null,null,null,0,""]
["Næstved, Slagelse og Ringsted Sygehuse","I alt",{"$f":"SUMIFS((C7:C25),(A7:A25),A26)","v":117145.40007536999},{"$f":"SUMIFS((D7:D25),(A7:A25),A26)","v":115937.23109742699},{"$f":"SUMIFS((E7:E25),(A7:A25),A26)","v":112584.80723000001},{"$f":"SUMIFS((F7:F25),(A7:A25),A26)","v":108393.2538322},1208.1689779430017,"1,0%"]
["Nykøbing F.  Sygehus",null,null,null,null,null,0,""]
["Nykøbing F.  Sygehus","1.70.50: Andel af fællesudgifter",51728.380303622798,48740.246989942098,48877.615579999998,45431.9399834,2988.1333136807007,"6,1%"]
["Nykøbing F.  Sygehus","1.60.40: Andel af central administration af sundhed (til og med 2019)",null,null,null,null,0,""]
["Nykøbing F.  Sygehus","1.60.41: Andel af øvrige udgifter og indtægter",null,null,null,null,0,""]
["Nykøbing F.  Sygehus","1.50.33: Andel af central administration af sundhed (ekskl. psykiatri)",null,null,null,null,0,""]
["Nykøbing F.  Sygehus","1.50.35: Administration af det psykiatriske område (kun central del)",null,null,null,null,0,""]
["Nykøbing F.  Sygehus","I alt",{"$f":"SUMIFS((C7:C32),(A7:A32),A33)","v":51728.380303622798},{"$f":"SUMIFS((D7:D32),(A7:A32),A33)","v":48740.246989942098},{"$f":"SUMIFS((E7:E32),(A7:A32),A33)","v":48877.615579999998},{"$f":"SUMIFS((F7:F32),(A7:A32),A33)","v":45431.9399834},2988.1333136807007,"6,1%"]
["Sygehus Nord",null,null,null,null,null,0,""]
["Sygehus Nord","1.70.50: Andel af fællesudgifter",null,null,null,null,0,""]
["Sygehus Nord","1.60.40: Andel af central administration af sundhed (til og med 2019)",null,null,null,null,0,""]
["Sygehus Nord","1.60.41: Andel af øvrige udgifter og indtægter",null,null,null,null,0,""]
["Sygehus Nord","1.50.33: Andel af central administration af sundhed (ekskl. psykiatri)",null,null,null,null,0,""]
["Sygehus Nord","1.50.35: Administration af det psykiatriske område (kun central del)",null,null,null,null,{"$f":"IF(ISERROR(C39- D39)=TRUE,\"\",C39 - D39)","v":0},{"$f":"IF(ISERROR((((C39- D39)/D39)*100)=TRUE),\"\",IF((((C39- D39)/D39)*100)<-7,FIXED(((C39- D39)/D39)*100, 1,TRUE) &\"%\" & \"▼\",IF((((C39- D39)/D39)*100)>7,FIXED(((C39- D39)/D39)*100, 1,TRUE) &\"%\" &\"▲\",FIXED(((C39- D39)/D39)*100, 1,TRUE)&\"%\")))","v":""}]
["Sygehus Nord","I alt",{"$f":"SUMIFS((C7:C39),(A7:A39),A40)","v":0},{"$f":"SUMIFS((D7:D39),(A7:A39),A40)","v":0},{"$f":"SUMIFS((E7:E39),(A7:A39),A40)","v":0},{"$f":"SUMIFS((F7:F39),(A7:A39),A40)","v":0},0,""]
["Sygehus Syd",null,null,null,null,null,0,""]
["Sygehus Syd","1.70.50: Andel af fællesudgifter",null,null,null,null,0,""]
["Sygehus Syd","1.60.40: Andel af central administration af sundhed (til og med 2019)",null,null,null,null,0,""]
["Sygehus Syd","1.60.41: Andel af øvrige udgifter og indtægter",null,null,null,null,0,""]
["Sygehus Syd","1.50.33: Andel af central administration af sundhed (ekskl. psykiatri)",null,null,null,null,0,""]
["Sygehus Syd","1.50.35: Administration af det psykiatriske område (kun central del)",null,null,null,null,0,""]
["Sygehus Syd","I alt",{"$f":"SUMIFS((C7:C46),(A7:A46),A47)","v":0},{"$f":"SUMIFS((D7:D46),(A7:A46),A47)","v":0},{"$f":"SUMIFS((E7:E46),(A7:A46),A47)","v":0},{"$f":"SUMIFS((F7:F46),(A7:A46),A47)","v":0},0,""]
["Garantiklinikken",null,null,null,null,null,0,""]
["Garantiklinikken","1.70.50: Andel af fællesudgifter",null,null,null,null,0,""]
["Garantiklinikken","1.60.40: Andel af central administration af sundhed (til og med 2019)",null,null,null,null,0,""]
["Garantiklinikken","1.60.41: Andel af øvrige udgifter og indtægter",null,null,null,null,0,""]
["Garantiklinikken","1.50.33: Andel af central administration af sundhed (ekskl. psykiatri)",null,null,null,null,0,""]
["Garantiklinikken","1.50.35: Administration af det psykiatriske område (kun central del)",null,null,null,null,0,""]
["Garantiklinikken","I alt",{"$f":"SUMIFS((C7:C53),(A7:A53),A54)","v":0},{"$f":"SUMIFS((D7:D53),(A7:A53),A54)","v":0},{"$f":"SUMIFS((E7:E53),(A7:A53),A54)","v":0},{"$f":"SUMIFS((F7:F53),(A7:A53),A54)","v":0},0,""]
["Øvrige i Region Sjælland",null,null,null,null,null,0,""]
["Øvrige i Region Sjælland","1.70.50: Andel af fællesudgifter",null,null,null,null,0,""]
["Øvrige i Region Sjælland","1.60.40: Andel af central administration af sundhed (til og med 2019)",null,null,null,null,0,""]
["Øvrige i Region Sjælland","1.60.41: Andel af øvrige udgifter og indtægter",null,null,null,null,0,""]
["Øvrige i Region Sjælland","1.50.33: Andel af central administration af sundhed (ekskl. psykiatri)",null,null,null,null,0,""]
["Øvrige i Region Sjælland","1.50.35: Administration af det psykiatriske område (kun central del)",null,null,null,null,0,""]
["Øvrige i Region Sjælland","I alt",{"$f":"SUMIFS((C7:C60),(A7:A60),A61)","v":0},{"$f":"SUMIFS((D7:D60),(A7:A60),A61)","v":0},{"$f":"SUMIFS((E7:E60),(A7:A60),A61)","v":0},{"$f":"SUMIFS((F7:F60),(A7:A60),A61)","v":0},0,""]
["Ikke fordelte udgifter og indtægter",null,null,null,null,null,0,""]
["Ikke fordelte udgifter og indtægter","1.70.50: Andel af fællesudgifter",358672.003010149,351306.017157992,741393.46178000001,436291.12063999998,7365.9858521569986,"2,1%","Se note 6"]
["Ikke fordelte udgifter og indtægter","1.60.40: Andel af central administration af sundhed (til og med 2019)",null,null,null,null,0,""]
["Ikke fordelte udgifter og indtægter","1.60.41: Andel af øvrige udgifter og indtægter",null,null,null,null,0,""]
["Ikke fordelte udgifter og indtægter","1.50.33: Andel af central administration af sundhed (ekskl. psykiatri)",null,null,null,null,0,""]
["Ikke fordelte udgifter og indtægter","1.50.35: Administration af det psykiatriske område (kun central del)",null,null,null,null,0,""]
["Ikke fordelte udgifter og indtægter","I alt",{"$f":"SUMIFS((C7:C67),(A7:A67),A68)","v":358672.003010149},{"$f":"SUMIFS((D7:D67),(A7:A67),A68)","v":351306.017157992},{"$f":"SUMIFS((E7:E67),(A7:A67),A68)","v":741393.46178000001},{"$f":"SUMIFS((F7:F67),(A7:A67),A68)","v":436291.12063999998},7365.9858521569986,"2,1%"]

{"sheet":"Skema 4","index":3,"n_rows":50,"n_cols":9,"rows_kept":50,"cut":false,"hidden":false,"merged":[[1,1,2,8]]}
["Region Sjælland, somatiske sygehuse."]
[null,"Skema 4: Udgifter og indtægter til og fra psykiatriske afdelinger konteret på somatiske sygehuse. (1.000 kr.)"]
[]
[]
["Sygehus",null,2023,2022,2021,2020,"Δ2022-2023","% afvigelse","Begrundelse"]
["Sjællands Universitetshospital"]
["Sjællands Universitetshospital","Korrektion",null,null,null,null,{"$f":"IF(ISERROR(C7- D7)=TRUE,\"\",C7 - D7)","v":0},{"$f":"IF(ISERROR((((C7- D7)/D7)*100)=TRUE),\"\",IF((((C7- D7)/D7)*100)<-7,FIXED(((C7- D7)/D7)*100, 1,TRUE) &\"%\" & \"▼\",IF((((C7- D7)/D7)*100)>7,FIXED(((C7- D7)/D7)*100, 1,TRUE) &\"%\" &\"▲\",FIXED(((C7- D7)/D7)*100, 1,TRUE)&\"%\")))","v":""}]
["Sjællands Universitetshospital","Lønudg. på psyk. afd.,somatiske sygehuse",null,null,null,null,0,""]
["Sjællands Universitetshospital","Øvrige udg. til psyk. afd.,somatiske sygehuse",null,null,null,null,0,""]
["Sjællands Universitetshospital","I alt",{"$f":"SUMIFS((C7:C9),(A7:A9),A10)","v":0},{"$f":"SUMIFS((D7:D9),(A7:A9),A10)","v":0},{"$f":"SUMIFS((E7:E9),(A7:A9),A10)","v":0},{"$f":"SUMIFS((F7:F9),(A7:A9),A10)","v":0},0,""]
["Holbæk Sygehus",null,null,null,null,null,0,""]
["Holbæk Sygehus","Korrektion",null,null,null,null,0,""]
["Holbæk Sygehus","Lønudg. på psyk. afd.,somatiske sygehuse",null,null,null,null,0,""]
["Holbæk Sygehus","Øvrige udg. til psyk. afd.,somatiske sygehuse",null,null,null,null,0,""]
["Holbæk Sygehus","I alt",{"$f":"SUMIFS((C7:C14),(A7:A14),A15)","v":0},{"$f":"SUMIFS((D7:D14),(A7:A14),A15)","v":0},{"$f":"SUMIFS((E7:E14),(A7:A14),A15)","v":0},{"$f":"SUMIFS((F7:F14),(A7:A14),A15)","v":0},0,""]
["Næstved, Slagelse og Ringsted Sygehuse",null,null,null,null,null,0,""]
["Næstved, Slagelse og Ringsted Sygehuse","Korrektion",null,null,null,null,0,""]
["Næstved, Slagelse og Ringsted Sygehuse","Lønudg. på psyk. afd.,somatiske sygehuse",null,null,null,null,0,""]
["Næstved, Slagelse og Ringsted Sygehuse","Øvrige udg. til psyk. afd.,somatiske sygehuse",null,null,null,null,0,""]
["Næstved, Slagelse og Ringsted Sygehuse","I alt",{"$f":"SUMIFS((C7:C19),(A7:A19),A20)","v":0},{"$f":"SUMIFS((D7:D19),(A7:A19),A20)","v":0},{"$f":"SUMIFS((E7:E19),(A7:A19),A20)","v":0},{"$f":"SUMIFS((F7:F19),(A7:A19),A20)","v":0},0,""]
["Nykøbing F.  Sygehus",null,null,null,null,null,0,""]
["Nykøbing F.  Sygehus","Korrektion",null,null,null,null,0,""]
["Nykøbing F.  Sygehus","Lønudg. på psyk. afd.,somatiske sygehuse",null,null,null,null,0,""]
["Nykøbing F.  Sygehus","Øvrige udg. til psyk. afd.,somatiske sygehuse",null,null,null,null,0,""]
["Nykøbing F.  Sygehus","I alt",{"$f":"SUMIFS((C7:C24),(A7:A24),A25)","v":0},{"$f":"SUMIFS((D7:D24),(A7:A24),A25)","v":0},{"$f":"SUMIFS((E7:E24),(A7:A24),A25)","v":0},{"$f":"SUMIFS((F7:F24),(A7:A24),A25)","v":0},0,""]
["Sygehus Nord",null,null,null,null,null,0,""]
["Sygehus Nord","Korrektion",null,null,null,null,0,""]
["Sygehus Nord","Lønudg. på psyk. afd.,somatiske sygehuse",null,null,null,null,0,""]
["Sygehus Nord","Øvrige udg. til psyk. afd.,somatiske sygehuse",null,null,null,null,0,""]
["Sygehus Nord","I alt",{"$f":"SUMIFS((C7:C29),(A7:A29),A30)","v":0},{"$f":"SUMIFS((D7:D29),(A7:A29),A30)","v":0},{"$f":"SUMIFS((E7:E29),(A7:A29),A30)","v":0},{"$f":"SUMIFS((F7:F29),(A7:A29),A30)","v":0},0,""]
["Sygehus Syd",null,null,null,null,null,0,""]
["Sygehus Syd","Korrektion",null,null,null,null,0,""]
["Sygehus Syd","Lønudg. på psyk. afd.,somatiske sygehuse",null,null,null,null,0,""]
["Sygehus Syd","Øvrige udg. til psyk. afd.,somatiske sygehuse",null,null,null,null,0,""]
["Sygehus Syd","I alt",{"$f":"SUMIFS((C7:C34),(A7:A34),A35)","v":0},{"$f":"SUMIFS((D7:D34),(A7:A34),A35)","v":0},{"$f":"SUMIFS((E7:E34),(A7:A34),A35)","v":0},{"$f":"SUMIFS((F7:F34),(A7:A34),A35)","v":0},0,""]
["Garantiklinikken",null,null,null,null,null,0,""]
["Garantiklinikken","Korrektion",null,null,null,null,0,""]
["Garantiklinikken","Lønudg. på psyk. afd.,somatiske sygehuse",null,null,null,null,0,""]
["Garantiklinikken","Øvrige udg. til psyk. afd.,somatiske sygehuse",null,null,null,null,0,""]
["Garantiklinikken","I alt",{"$f":"SUMIFS((C7:C39),(A7:A39),A40)","v":0},{"$f":"SUMIFS((D7:D39),(A7:A39),A40)","v":0},{"$f":"SUMIFS((E7:E39),(A7:A39),A40)","v":0},{"$f":"SUMIFS((F7:F39),(A7:A39),A40)","v":0},0,""]
["Øvrige i Region Sjælland",null,null,null,null,null,0,""]
["Øvrige i Region Sjælland","Korrektion",null,null,null,null,0,""]
["Øvrige i Region Sjælland","Lønudg. på psyk. afd.,somatiske sygehuse",null,null,null,null,0,""]
["Øvrige i Region Sjælland","Øvrige udg. til psyk. afd.,somatiske sygehuse",null,null,null,null,0,""]
["Øvrige i Region Sjælland","I alt",{"$f":"SUMIFS((C7:C44),(A7:A44),A45)","v":0},{"$f":"SUMIFS((D7:D44),(A7:A44),A45)","v":0},{"$f":"SUMIFS((E7:E44),(A7:A44),A45)","v":0},{"$f":"SUMIFS((F7:F44),(A7:A44),A45)","v":0},0,""]
["Ikke fordelte udgifter og indtægter",null,null,null,null,null,0,""]
["Ikke fordelte udgifter og indtægter","Korrektion",null,null,null,null,0,""]
["Ikke fordelte udgifter og indtægter","Lønudg. på psyk. afd.,somatiske sygehuse",null,null,null,null,0,""]
["Ikke fordelte udgifter og indtægter","Øvrige udg. til psyk. afd.,somatiske sygehuse",null,null,null,null,0,""]
["Ikke fordelte udgifter og indtægter","I alt",{"$f":"SUMIFS((C7:C49),(A7:A49),A50)","v":0},{"$f":"SUMIFS((D7:D49),(A7:A49),A50)","v":0},{"$f":"SUMIFS((E7:E49),(A7:A49),A50)","v":0},{"$f":"SUMIFS((F7:F49),(A7:A49),A50)","v":0},0,""]

{"sheet":"Skema 5","index":4,"n_rows":50,"n_cols":9,"rows_kept":50,"cut":false,"hidden":false,"merged":[[1,1,2,8]]}
["Region Sjælland, somatiske sygehuse."]
[null,"Skema 5: Leasing- og huslejeudgifter. (1.000 kr.)"]
[]
[]
["Sygehus",null,2023,2022,2021,2020,"Δ2022-2023","% afvigelse","Begrundelse"]
["Sjællands Universitetshospital"]
["Sjællands Universitetshospital","Andre udgifter",null,null,null,null,{"$f":"IF(ISERROR(C7- D7)=TRUE,\"\",C7 - D7)","v":0},{"$f":"IF(ISERROR((((C7- D7)/D7)*100)=TRUE),\"\",IF((((C7- D7)/D7)*100)<-7,FIXED(((C7- D7)/D7)*100, 1,TRUE) &\"%\" & \"▼\",IF((((C7- D7)/D7)*100)>7,FIXED(((C7- D7)/D7)*100, 1,TRUE) &\"%\" &\"▲\",FIXED(((C7- D7)/D7)*100, 1,TRUE)&\"%\")))","v":""}]
["Sjællands Universitetshospital","Leasing- og lejeudgifter",45719.2124680704,28209.238855414613,17446.209096190232,22866.203173650872,17509.973612655787,"62,1%▲","ESCO projekt alene små 5 mio. Derudover øget regionalt fordelte udgifter 4 mio."]
["Sjællands Universitetshospital","Huslejeudgifter",13273.0321310241,11518.599999610104,247.42818002790162,238.42171167976102,1754.4321314139961,"15,2%▲","Uvæsenligt beløb"]
["Sjællands Universitetshospital","I alt",{"$f":"SUMIFS((C7:C9),(A7:A9),A10)","v":58992.244599094498},{"$f":"SUMIFS((D7:D9),(A7:A9),A10)","v":39727.838855024718},{"$f":"SUMIFS((E7:E9),(A7:A9),A10)","v":17693.637276218135},{"$f":"SUMIFS((F7:F9),(A7:A9),A10)","v":23104.624885330635},19264.40574406978,"48,5%▲"]
["Holbæk Sygehus",null,null,null,null,null,0,""]
["Holbæk Sygehus","Andre udgifter",null,null,null,null,0,""]
["Holbæk Sygehus","Leasing- og lejeudgifter",9306.9014520835499,{"$f":"9598064.83259496/1000","v":9598.0648325949605},6538.5735730334991,17824.915747317667,-291.16338051141065,"-3,0%"]
["Holbæk Sygehus","Huslejeudgifter",1127.73483620364,{"$f":"309343.483008532/1000","v":309.34348300853202},282.05072977371094,104.40260484814546,818.39135319510797,"264,6%▲","Uvæsenligt beløb-muligvis ændret kontering"]
["Holbæk Sygehus","I alt",{"$f":"SUMIFS((C7:C14),(A7:A14),A15)","v":10434.636288287191},{"$f":"SUMIFS((D7:D14),(A7:A14),A15)","v":9907.4083156034922},{"$f":"SUMIFS((E7:E14),(A7:A14),A15)","v":6820.6243028072104},{"$f":"SUMIFS((F7:F14),(A7:A14),A15)","v":17929.318352165814},527.22797268369868,"5,3%"]
["Næstved, Slagelse og Ringsted Sygehuse",null,null,null,null,null,0,""]
["Næstved, Slagelse og Ringsted Sygehuse","Andre udgifter",null,null,null,null,0,""]
["Næstved, Slagelse og Ringsted Sygehuse","Leasing- og lejeudgifter",10408.224,11712.8465424758,17337.588520000001,22425.169488857598,-1304.6225424757995,"-11,1%▼","NSR har haft en række leasingaftaler, som er udløbet i løbet af 2022 og 2023."]
["Næstved, Slagelse og Ringsted Sygehuse","Huslejeudgifter",37693.586000000003,34441.150748446496,33155.438869999998,33650.540862371003,3252.4352515535065,"9,4%▲","Huslejestigning i leje 8-10% grundet høj inflation."]
["Næstved, Slagelse og Ringsted Sygehuse","I alt",{"$f":"SUMIFS((C7:C19),(A7:A19),A20)","v":48101.810000000005},{"$f":"SUMIFS((D7:D19),(A7:A19),A20)","v":46153.9972909223},{"$f":"SUMIFS((E7:E19),(A7:A19),A20)","v":50493.027390000003},{"$f":"SUMIFS((F7:F19),(A7:A19),A20)","v":56075.710351228598},1947.8127090777052,"4,2%"]
["Nykøbing F.  Sygehus",null,null,null,null,null,0,""]
["Nykøbing F.  Sygehus","Andre udgifter",null,null,null,null,0,""]
["Nykøbing F.  Sygehus","Leasing- og lejeudgifter",6510.0281774656196,5060.25,7839.9813284605707,{"$f":"8968276.056/1000","v":8968.2760560000006},1449.7781774656196,"28,7%▲","Der bliver stadig indkøbt forskellige hjælpemidler i stedet for leasing, Radiologien leaser udsstyr, som er flyttet til SUH"]
["Nykøbing F.  Sygehus","Huslejeudgifter",378.215006534959,70.296000000000006,59.344844517728106,{"$f":"69246.17/1000","v":69.246169999999992},307.91900653495901,"438,0%▲","Uvæsenligt beløb"]
["Nykøbing F.  Sygehus","I alt",{"$f":"SUMIFS((C7:C24),(A7:A24),A25)","v":6888.2431840005784},{"$f":"SUMIFS((D7:D24),(A7:A24),A25)","v":5130.5460000000003},{"$f":"SUMIFS((E7:E24),(A7:A24),A25)","v":7899.3261729782989},{"$f":"SUMIFS((F7:F24),(A7:A24),A25)","v":9037.522226000001},1757.6971840005781,"34,3%▲"]
["Sygehus Nord",null,null,null,null,null,0,""]
["Sygehus Nord","Andre udgifter",null,null,null,null,0,""]
["Sygehus Nord","Leasing- og lejeudgifter",null,null,null,null,0,""]
["Sygehus Nord","Huslejeudgifter",null,null,null,null,0,""]
["Sygehus Nord","I alt",{"$f":"SUMIFS((C7:C29),(A7:A29),A30)","v":0},{"$f":"SUMIFS((D7:D29),(A7:A29),A30)","v":0},{"$f":"SUMIFS((E7:E29),(A7:A29),A30)","v":0},{"$f":"SUMIFS((F7:F29),(A7:A29),A30)","v":0},0,""]
["Sygehus Syd",null,null,null,null,null,0,""]
["Sygehus Syd","Andre udgifter",null,null,null,null,0,""]
["Sygehus Syd","Leasing- og lejeudgifter",null,null,null,null,0,""]
["Sygehus Syd","Huslejeudgifter",null,null,null,null,0,""]
["Sygehus Syd","I alt",{"$f":"SUMIFS((C7:C34),(A7:A34),A35)","v":0},{"$f":"SUMIFS((D7:D34),(A7:A34),A35)","v":0},{"$f":"SUMIFS((E7:E34),(A7:A34),A35)","v":0},{"$f":"SUMIFS((F7:F34),(A7:A34),A35)","v":0},0,""]
["Garantiklinikken",null,null,null,null,null,0,""]
["Garantiklinikken","Andre udgifter",null,null,null,null,0,""]
["Garantiklinikken","Leasing- og lejeudgifter",null,null,null,null,0,""]
["Garantiklinikken","Huslejeudgifter",null,null,null,null,0,""]
["Garantiklinikken","I alt",{"$f":"SUMIFS((C7:C39),(A7:A39),A40)","v":0},{"$f":"SUMIFS((D7:D39),(A7:A39),A40)","v":0},{"$f":"SUMIFS((E7:E39),(A7:A39),A40)","v":0},{"$f":"SUMIFS((F7:F39),(A7:A39),A40)","v":0},0,""]
["Øvrige i Region Sjælland",null,null,null,null,null,0,""]
["Øvrige i Region Sjælland","Andre udgifter",null,null,null,null,0,""]
["Øvrige i Region Sjælland","Leasing- og lejeudgifter",null,null,null,null,0,""]
["Øvrige i Region Sjælland","Huslejeudgifter",null,null,null,null,0,""]
["Øvrige i Region Sjælland","I alt",{"$f":"SUMIFS((C7:C44),(A7:A44),A45)","v":0},{"$f":"SUMIFS((D7:D44),(A7:A44),A45)","v":0},{"$f":"SUMIFS((E7:E44),(A7:A44),A45)","v":0},{"$f":"SUMIFS((F7:F44),(A7:A44),A45)","v":0},0,""]
["Ikke fordelte udgifter og indtægter",null,null,null,null,null,0,""]
["Ikke fordelte udgifter og indtægter","Andre udgifter",null,null,null,null,0,""]
["Ikke fordelte udgifter og indtægter","Leasing- og lejeudgifter",null,null,null,null,0,""]
["Ikke fordelte udgifter og indtægter","Huslejeudgifter",null,null,null,null,0,""]
["Ikke fordelte udgifter og indtægter","I alt",{"$f":"SUMIFS((C7:C49),(A7:A49),A50)","v":0},{"$f":"SUMIFS((D7:D49),(A7:A49),A50)","v":0},{"$f":"SUMIFS((E7:E49),(A7:A49),A50)","v":0},{"$f":"SUMIFS((F7:F49),(A7:A49),A50)","v":0},0,""]

{"sheet":"Skema 6","index":5,"n_rows":455,"n_cols":9,"rows_kept":455,"cut":false,"hidden":false,"merged":[[1,1,2,8]]}
["Region Sjælland, somatiske sygehuse."]
[null,"Skema 6: Udgifter til andet end patientbehandling. (1.000 kr.)"]
[]
[]
["Sygehus",null,2023,2022,2021,2020,"Δ2022-2023","% afvigelse","Begrundelse"]
["Sjællands Universitetshospital"]
["Sjællands Universitetshospital","Skema 6.1: Center for voldsramte (Bispebjerg)",null,0,0,null,{"$f":"IF(ISERROR(C7- D7)=TRUE,\"\",C7 - D7)","v":0},{"$f":"IF(ISERROR((((C7- D7)/D7)*100)=TRUE),\"\",IF((((C7- D7)/D7)*100)<-7,FIXED(((C7- D7)/D7)*100, 1,TRUE) &\"%\" & \"▼\",IF((((C7- D7)/D7)*100)>7,FIXED(((C7- D7)/D7)*100, 1,TRUE) &\"%\" &\"▲\",FIXED(((C7- D7)/D7)*100, 1,TRUE)&\"%\")))","v":""}]
["Sjællands Universitetshospital","Skema 6.2: Ventilatørbistand i hjemmet, respiratorpatienter",null,0,0,null,0,""]
["Sjællands Universitetshospital","Skema 6.3: Blodprøvetagning i eget hjem",2541.4246715999998,2397.4197324000002,2151.0374940000002,2121.2390674000012,144.00493919999963,"6,0%","Generel aktivitetsstigning"]
["Sjællands Universitetshospital","Skema 6.4: Psykinfo + pårørende",null,0,0,null,0,""]
["Sjællands Universitetshospital","Skema 6.5: Leveret udstyr til patienter i eget hjem, ilt og sonderemedier",null,0,0,null,0,""]
["Sjællands Universitetshospital","Skema 6.6: Montebello (Nordsjællands Hospitaler)",null,0,0,null,0,""]
["Sjællands Universitetshospital","Skema 6.7: Satspulje korrektioner mellem år",null,0,0,null,0,""]
["Sjællands Universitetshospital","Skema 6.8: Klinisk farmakologisk rådgivning af praksissektoren",null,0,0,null,0,""]
["Sjællands Universitetshospital","Skema 6.9: Tandregulering ifm. operation",null,0,0,null,0,""]
["Sjællands Universitetshospital","Skema 6.10: Giftlinjen",null,0,0,null,0,""]
["Sjællands Universitetshospital","Skema 6.11: Tjenestemandspensioner",null,0,0,null,0,""]
["Sjællands Universitetshospital","Skema 6.12: Art 4.6 Betalinger til staten",null,0,0,null,0,""]
["Sjællands Universitetshospital","Skema 6.13: Art 4.7 Betalinger til kommuner",null,0,0,null,0,""]
["Sjællands Universitetshospital","Skema 6.14: Art 4.8 Betalinger til andre regioner",null,0,0,null,0,""]
["Sjællands Universitetshospital","Skema 6.15: Art 7.6 Betalinger fra staten",null,0,0,null,0,""]
["Sjællands Universitetshospital","Skema 6.16: Art 7.7 Betalinger fra kommuner",null,0,0,null,0,""]
["Sjællands Universitetshospital","Skema 6.17: Art 7.8 Betalinger fra andre regioner",null,0,0,null,0,""]
["Sjællands Universitetshospital","Skema 6.18: Betalinger til selvejende, private og udenlandske sygehuse",null,0,0,null,0,""]
["Sjællands Universitetshospital","Skema 6.19: Dækningsafgift/ejendomsskat",146.94966158332301,9102.4843399999991,7686.7351642784824,10609.900519999999,-8955.5346784166759,"-98,4%▼","Skyldes forkert indberetning tidligere år"]
["Sjællands Universitetshospital","Skema 6.20: Forsikringer/erstatninger",1138.05410750343,15583.13984,15096.310034361777,13668.700422159542,-14445.085732496569,"-92,7%▼","Skyldes forkert indberetning tidligere år"]
["Sjællands Universitetshospital","Skema 6.21: Vederlagsfri Lab. –ydelser og andre ydelser til praksissektoren",149686.77304115001,141197.06473840782,135497.53248600001,126833.6831128029,8489.7083027421904,"6,0%"]
["Sjællands Universitetshospital","Skema 6.22: Patienttransport",0,0,0,0,0,""]
["Sjællands Universitetshospital","Skema 6.23: Serviceydelser til/fra andre institutioner eller sygehuse udenfor regionen",3263.1003716,3028.4463484000003,2701.8137929000004,2626.2754928999993,234.65402319999976,"7,7%▲","Almindelige udsving, uvæsentlig beløb"]
["Sjællands Universitetshospital","Skema 6.24: Udgifter til eksternt finansierede forskning",-359.25787000000003,-318.96282000000002,-991.82384000000002,-209.20448000000002,-40.295050000000003,"12,6%▲","Almindelige udsving, uvæsentlig beløb"]
["Sjællands Universitetshospital","Skema 6.25: Forebyggelse rettet mod praksissektoren og kommuner",null,0,0,null,0,""]
["Sjællands Universitetshospital","Skema 6.26: Praksisreservelæger",null,0,0,null,0,""]
["Sjællands Universitetshospital","Skema 6.27: Præhospital",null,0,0,null,0,""]
["Sjællands Universitetshospital","Skema 6.28: Udgifter til Danske Regioner (Kontigent, MedCom, Fællesproj.)",null,0,0,null,0,""]
["Sjællands Universitetshospital","Skema 6.29: Hospice",null,0,0,null,0,""]
["Sjællands Universitetshospital","Skema 6.30: Konsulenter(Praksis)",794.25,638.36784,627.44356000000005,195.87522000000001,155.88216,"24,4%▲","Praksiskonsulenterne er fordelt som administration på sygehuset. Burde have været 794.250 kr. i 2023, mangler i fordeligsregnskabet"]
["Sjællands Universitetshospital","Skema 6.31: Videnskabsetisk Komité",null,0,0,null,0,""]
["Sjællands Universitetshospital","Skema 6.32: Tolkebistand",1497.68,1247.92479,1219.3089399999999,1364.54973,249.75521000000003,"20,0%▲","Fejl i 2023 fordelingsregnskab. Der burde have været posteret 1.497.680 kr. her. Afvigelsen skyldes øget behov i 2023 almindelige udsving"]
["Sjællands Universitetshospital","Skema 6.33: Dansk Center for Partikelterapi",null,0,0,null,0,""]
["Sjællands Universitetshospital","Skema 6.34: Politisk organisation – overførte udgifter fra funktion 4.10.01, 4.10.02 og 4.10.04",null,0,0,null,0,""]
["Sjællands Universitetshospital","Skema 6.35: Øvrige udgifter, Region Sjælland",null,0,0,null,0,""]
["Sjællands Universitetshospital","Skema 6.36: Sundhedsydelser ifm. specialsektor",null,0,0,null,0,""]
["Sjællands Universitetshospital","Skema 6.37: Udgifter til primær sundhed fra skema 2",null,0,0,null,0,""]
["Sjællands Universitetshospital","Skema 6.38: Udgifter til primær sundhed fra skema 3",null,0,0,null,0,""]
["Sjællands Universitetshospital","Skema 6.39: Særlige udgifter ifm. COVID-19",null,184733.02503818172,174809.49702818194,205767.02766374004,{"$f":"IF(ISERROR(C48- D45)=TRUE,\"\",C48 - D45)","v":-2139.6085581817024},{"$f":"IF(ISERROR((((C48- D45)/D45)*100)=TRUE),\"\",IF((((C48- D45)/D45)*100)<-7,FIXED(((C48- D45)/D45)*100, 1,TRUE) &\"%\" & \"▼\",IF((((C48- D45)/D45)*100)>7,FIXED(((C48- D45)/D45)*100, 1,TRUE) &\"%\" &\"▲\",FIXED(((C48- D45)/D45)*100, 1,TRUE)&\"%\")))","v":"-1,2%"}]
["Sjællands Universitetshospital","Skema 6.40: Udleveret udstyr/tilbehør ifm. cochlear implantater",null,0,0,null,0,""]
["Sjællands Universitetshospital","Skema 6.41: Luxturna-behandling, Rigshospitalet",null,0,0,null,0,""]
["Sjællands Universitetshospital","Skema 6.42: Udleveret medicin",182593.41648000001,170463.91493000003,181457.64831999998,null,{"$f":"IF(ISERROR(#REF!- D48)=TRUE,\"\",#REF! - D48)","v":""},{"$f":"IF(ISERROR((((#REF!- D48)/D48)*100)=TRUE),\"\",IF((((#REF!- D48)/D48)*100)<-7,FIXED(((#REF!- D48)/D48)*100, 1,TRUE) &\"%\" & \"▼\",IF((((#REF!- D48)/D48)*100)>7,FIXED(((#REF!- D48)/D48)*100, 1,TRUE) &\"%\" &\"▲\",FIXED(((#REF!- D48)/D48)*100, 1,TRUE)&\"%\")))","v":""}]
["Sjællands Universitetshospital","Skema 6.43: Udgifter ifm. sundhedsklynger",null,0,null,null,0,""]
["Sjællands Universitetshospital","Skema 6.44: Ukrainske patienter under særlov eller asyl",null,0,null,null,0,""]
["Sjællands Universitetshospital","Skema 6.45: Udgifter ifm. de særlige pladser i psykiatrien",null,null,null,null,0,""]
["Sjællands Universitetshospital","Skema 6.46: Sikringsafdelingen, Region Sjælland",null,null,null,null,0,""]
["Sjællands Universitetshospital","Skema 6.47: Øvrige (Kan kun benyttes efter aftale med Sundhedsdatastyrelsen)",null,0,0,null,0,""]
["Sjællands Universitetshospital","Lukkede poster (må kun bruges af Sundhedsdatastyrelsen)",null,null,null,null,0,""]
["Sjællands Universitetshospital","I alt",{"$f":"SUMIFS((C7:C54),(A7:A54),A55)","v":341302.39046343678},{"$f":"SUMIFS((D7:D54),(A7:A54),A55)","v":528072.82477738964},{"$f":"SUMIFS((E7:E54),(A7:A54),A55)","v":520255.50297972217},{"$f":"SUMIFS((F7:F54),(A7:A54),A55)","v":362978.04674900247},-186770.43431395286,"-35,4%▼"]
["Holbæk Sygehus",null,null,null,null,null,0,""]
["Holbæk Sygehus","Skema 6.1: Center for voldsramte (Bispebjerg)",null,0,0,0,0,""]
["Holbæk Sygehus","Skema 6.2: Ventilatørbistand i hjemmet, respiratorpatienter",null,0,0,0,0,""]
["Holbæk Sygehus","Skema 6.3: Blodprøvetagning i eget hjem",1122.70115990932,{"$f":"1147282.81640894/1000","v":1147.2828164089399},1065.5000077649167,1204.8462019999999,-24.581656499619839,"-2,1%"]
["Holbæk Sygehus","Skema 6.4: Psykinfo + pårørende",null,0,0,0,0,""]
["Holbæk Sygehus","Skema 6.5: Leveret udstyr til patienter i eget hjem, ilt og sonderemedier",1454.77224209,{"$f":"1239548.3823/1000","v":1239.5483823},1037.0670068700001,1004.09931508,215.22385979000001,"17,4%▲","Refusion til patienter (strøm m.m.) er steget pga stigende elpriser"]
["Holbæk Sygehus","Skema 6.6: Montebello (Nordsjællands Hospitaler)",null,0,0,0,0,""]
["Holbæk Sygehus","Skema 6.7: Satspulje korrektioner mellem år",null,0,0,0,0,""]
["Holbæk Sygehus","Skema 6.8: Klinisk farmakologisk rådgivning af praksissektoren",null,0,0,0,0,""]
["Holbæk Sygehus","Skema 6.9: Tandregulering ifm. operation",null,0,0,0,0,""]
["Holbæk Sygehus","Skema 6.10: Giftlinjen",null,0,0,0,0,""]
["Holbæk Sygehus","Skema 6.11: Tjenestemandspensioner",null,0,0,0,0,""]
["Holbæk Sygehus","Skema 6.12: Art 4.6 Betalinger til staten",null,0,0,0,0,""]
["Holbæk Sygehus","Skema 6.13: Art 4.7 Betalinger til kommuner",null,0,0,0,0,""]
["Holbæk Sygehus","Skema 6.14: Art 4.8 Betalinger til andre regioner",null,0,0,0,0,""]
["Holbæk Sygehus","Skema 6.15: Art 7.6 Betalinger fra staten",null,0,0,0,{"$f":"IF(ISERROR(C71- D71)=TRUE,\"\",C71 - D71)","v":0},{"$f":"IF(ISERROR((((C71- D71)/D71)*100)=TRUE),\"\",IF((((C71- D71)/D71)*100)<-7,FIXED(((C71- D71)/D71)*100, 1,TRUE) &\"%\" & \"▼\",IF((((C71- D71)/D71)*100)>7,FIXED(((C71- D71)/D71)*100, 1,TRUE) &\"%\" &\"▲\",FIXED(((C71- D71)/D71)*100, 1,TRUE)&\"%\")))","v":""}]
["Holbæk Sygehus","Skema 6.16: Art 7.7 Betalinger fra kommuner",null,0,0,0,0,""]
["Holbæk Sygehus","Skema 6.17: Art 7.8 Betalinger fra andre regioner",null,0,0,0,0,""]
["Holbæk Sygehus","Skema 6.18: Betalinger til selvejende, private og udenlandske sygehuse",null,0,0,0,0,""]
["Holbæk Sygehus","Skema 6.19: Dækningsafgift/ejendomsskat",178.421939435371,{"$f":"179831.944252473/1000","v":179.83194425247302},164.04512910216957,172.89575850550096,-1.4100048171020205,"-0,8%"]
["Holbæk Sygehus","Skema 6.20: Forsikringer/erstatninger",9338.2945311819203,{"$f":"6366132.5611464/1000","v":6366.1325611463999},6279.9073500138302,6192.7570034089613,2972.1619700355204,"46,7%▲","Arbejdsskadeerstatninger (AES) medgår i 2023, men beklageligvis ikke i 2022. Udgifterne til AES er steget knap 1 mio. kr. fra 2022 til 2023"]
["Holbæk Sygehus","Skema 6.21: Vederlagsfri Lab. –ydelser og andre ydelser til praksissektoren",13668.569165472099,{"$f":"14537564.8543094/1000","v":14537.564854309401},13251.750496678884,12966.6783,-868.99568883730171,"-6,0%"]
["Holbæk Sygehus","Skema 6.22: Patienttransport",null,0,0,0,0,""]
["Holbæk Sygehus","Skema 6.23: Serviceydelser til/fra andre institutioner eller sygehuse udenfor regionen",null,0,0,0,0,""]
["Holbæk Sygehus","Skema 6.24: Udgifter til eksternt finansierede forskning",-3.5805899999999999,{"$f":"-1619.59/1000","v":-1.6195899999999999},0.42654999999999998,-11.425450000000001,-1.9610000000000001,"121,1%▲","Uvæsentligt beløb"]
["Holbæk Sygehus","Skema 6.25: Forebyggelse rettet mod praksissektoren og kommuner",null,0,0,0,0,""]
["Holbæk Sygehus","Skema 6.26: Praksisreservelæger",null,0,0,0,0,""]
["Holbæk Sygehus","Skema 6.27: Præhospital",381.84,{"$f":"381840/1000","v":381.84},398.47245000000004,328.64,0,"0,0%"]
["Holbæk Sygehus","Skema 6.28: Udgifter til Danske Regioner (Kontigent, MedCom, Fællesproj.)",null,0,0,0,0,""]
["Holbæk Sygehus","Skema 6.29: Hospice",null,0,0,0,0,""]
["Holbæk Sygehus","Skema 6.30: Konsulenter(Praksis)",685.35356999999999,{"$f":"578435.84/1000","v":578.43583999999998},355.64967999999999,403.84156000000002,106.91773000000001,"18,5%▲","Uvæsentligt beløb"]
["Holbæk Sygehus","Skema 6.31: Videnskabsetisk Komité",null,0,0,0,0,""]
["Holbæk Sygehus","Skema 6.32: Tolkebistand",361.70965000000001,{"$f":"306146.8/1000","v":306.14679999999998},291.5745,282.20825000000002,55.562850000000026,"18,1%▲","Uvæsentligt beløb"]
["Holbæk Sygehus","Skema 6.33: Dansk Center for Partikelterapi",null,0,0,0,0,"",""]
["Holbæk Sygehus","Skema 6.34: Politisk organisation – overførte udgifter fra funktion 4.10.01, 4.10.02 og 4.10.04",null,0,0,0,0,""]
["Holbæk Sygehus","Skema 6.35: Øvrige udgifter, Region Sjælland",null,0,0,0,0,""]
["Holbæk Sygehus","Skema 6.36: Sundhedsydelser ifm. specialsektor",null,0,0,0,0,""]
["Holbæk Sygehus","Skema 6.37: Udgifter til primær sundhed fra skema 2",null,0,0,0,0,""]
["Holbæk Sygehus","Skema 6.38: Udgifter til primær sundhed fra skema 3",null,0,0,0,0,""]
["Holbæk Sygehus","Skema 6.39: Særlige udgifter ifm. COVID-19",null,{"$f":"70148363.14/1000","v":70148.363140000001},77892.607069999998,45200.71811000006,-70148.363140000001,"-100,0%▼","Ikke relevant længere"]
["Holbæk Sygehus","Skema 6.40: Udleveret udstyr/tilbehør ifm. cochlear implantater",null,0,0,null,0,""]
["Holbæk Sygehus","Skema 6.41: Luxturna-behandling, Rigshospitalet",null,0,0,null,0,""]
["Holbæk Sygehus","Skema 6.42: Udleveret medicin",24060.332249999999,{"$f":"22955170.45/1000","v":22955.170449999998},17963.069498700002,null,1105.1618000000017,"4,8%"]
["Holbæk Sygehus","Skema 6.43: Udgifter ifm. sundhedsklynger",503,0,null,null,503,""]
["Holbæk Sygehus","Skema 6.44: Ukrainske patienter under særlov eller asyl",null,0,null,null,0,""]
["Holbæk Sygehus","Skema 6.45: Udgifter ifm. de særlige pladser i psykiatrien",null,null,null,null,0,""]
["Holbæk Sygehus","Skema 6.46: Sikringsafdelingen, Region Sjælland",null,null,null,null,0,""]
["Holbæk Sygehus","Skema 6.47: Øvrige (Kan kun benyttes efter aftale med Sundhedsdatastyrelsen)",null,0,0,0,0,""]
["Holbæk Sygehus","Lukkede poster (må kun bruges af Sundhedsdatastyrelsen)",null,null,null,0,0,""]
["Holbæk Sygehus","I alt",{"$f":"SUMIFS((C7:C104),(A7:A104),A105)","v":51751.413918088714},{"$f":"SUMIFS((D7:D104),(A7:A104),A105)","v":117838.69719841721},{"$f":"SUMIFS((E7:E104),(A7:A104),A105)","v":118700.0697391298},{"$f":"SUMIFS((F7:F104),(A7:A104),A105)","v":67745.259048994514},-66087.283280328498,"-56,1%▼"]
["Næstved, Slagelse og Ringsted Sygehuse",null,null,null,null,null,0,""]
["Næstved, Slagelse og Ringsted Sygehuse","Skema 6.1: Center for voldsramte (Bispebjerg)",null,null,null,null,0,""]
["Næstved, Slagelse og Ringsted Sygehuse","Skema 6.2: Ventilatørbistand i hjemmet, respiratorpatienter",null,null,null,null,0,""]
["Næstved, Slagelse og Ringsted Sygehuse","Skema 6.3: Blodprøvetagning i eget hjem",2541.4158886816786,2603.0610000000001,2491.0936188000001,2426.5228243000001,-61.645111318321597,"-2,4%"]
["Næstved, Slagelse og Ringsted Sygehuse","Skema 6.4: Psykinfo + pårørende",null,null,null,null,0,""]
["Næstved, Slagelse og Ringsted Sygehuse","Skema 6.5: Leveret udstyr til patienter i eget hjem, ilt og sonderemedier",1843.5094520727141,1888.2260000000001,2794.4542299999998,4897.6378100000002,-44.716547927286001,"-2,4%"]
["Næstved, Slagelse og Ringsted Sygehuse","Skema 6.6: Montebello (Nordsjællands Hospitaler)",null,null,null,null,0,""]
["Næstved, Slagelse og Ringsted Sygehuse","Skema 6.7: Satspulje korrektioner mellem år",null,null,null,null,0,""]
["Næstved, Slagelse og Ringsted Sygehuse","Skema 6.8: Klinisk farmakologisk rådgivning af praksissektoren",null,null,null,null,0,""]
["Næstved, Slagelse og Ringsted Sygehuse","Skema 6.9: Tandregulering ifm. operation",null,null,null,null,0,""]
["Næstved, Slagelse og Ringsted Sygehuse","Skema 6.10: Giftlinjen",null,null,null,null,0,""]
["Næstved, Slagelse og Ringsted Sygehuse","Skema 6.11: Tjenestemandspensioner",null,null,null,null,0,""]
["Næstved, Slagelse og Ringsted Sygehuse","Skema 6.12: Art 4.6 Betalinger til staten",null,null,null,null,0,""]
["Næstved, Slagelse og Ringsted Sygehuse","Skema 6.13: Art 4.7 Betalinger til kommuner",null,null,null,null,0,""]
["Næstved, Slagelse og Ringsted Sygehuse","Skema 6.14: Art 4.8 Betalinger til andre regioner",null,null,null,null,0,""]
["Næstved, Slagelse og Ringsted Sygehuse","Skema 6.15: Art 7.6 Betalinger fra staten",null,null,null,null,0,""]
["Næstved, Slagelse og Ringsted Sygehuse","Skema 6.16: Art 7.7 Betalinger fra kommuner",null,null,null,null,0,""]
["Næstved, Slagelse og Ringsted Sygehuse","Skema 6.17: Art 7.8 Betalinger fra andre regioner",null,null,null,null,0,""]
["Næstved, Slagelse og Ringsted Sygehuse","Skema 6.18: Betalinger til selvejende, private og udenlandske sygehuse",null,null,null,null,0,""]
["Næstved, Slagelse og Ringsted Sygehuse","Skema 6.19: Dækningsafgift/ejendomsskat",7014.3180000000002,7215.2929999999997,7411.7592199999999,7239.8263788057802,-200.97499999999945,"-2,8%"]
["Næstved, Slagelse og Ringsted Sygehuse","Skema 6.20: Forsikringer/erstatninger",10078.370000000001,10489.169,10387.247020000001,11310.899805754299,-410.79899999999907,"-3,9%"]
["Næstved, Slagelse og Ringsted Sygehuse","Skema 6.21: Vederlagsfri Lab. –ydelser og andre ydelser til praksissektoren",42195.371314880373,43218.870999999999,46200.1800669,46685.913696800002,-1023.4996851196265,"-2,4%"]
["Næstved, Slagelse og Ringsted Sygehuse","Skema 6.22: Patienttransport",null,null,null,0,0,""]
["Næstved, Slagelse og Ringsted Sygehuse","Skema 6.23: Serviceydelser til/fra andre institutioner eller sygehuse udenfor regionen",null,null,null,null,0,""]
["Næstved, Slagelse og Ringsted Sygehuse","Skema 6.24: Udgifter til eksternt finansierede forskning",null,497.65100000000001,-8.8714200000000005,688.82330000000002,-497.65100000000001,"-100,0%▼","Forskydning i hhv. indtægter og udgifter til eksternt finansieret forskning."]
["Næstved, Slagelse og Ringsted Sygehuse","Skema 6.25: Forebyggelse rettet mod praksissektoren og kommuner",null,null,null,null,0,""]
["Næstved, Slagelse og Ringsted Sygehuse","Skema 6.26: Praksisreservelæger",null,null,null,null,0,""]
["Næstved, Slagelse og Ringsted Sygehuse","Skema 6.27: Præhospital",0,null,1453.027,1323.9983159999999,0,"","Anæstesilæger i Næstved tager vagter i Præhospitalt Center. Fra og med 2022 aflønnes de direkte af Præhospitalt Center"]
["Næstved, Slagelse og Ringsted Sygehuse","Skema 6.28: Udgifter til Danske Regioner (Kontigent, MedCom, Fællesproj.)",null,null,null,null,0,""]
["Næstved, Slagelse og Ringsted Sygehuse","Skema 6.29: Hospice",null,null,null,0,{"$f":"IF(ISERROR(C135- D135)=TRUE,\"\",C135 - D135)","v":0},{"$f":"IF(ISERROR((((C135- D135)/D135)*100)=TRUE),\"\",IF((((C135- D135)/D135)*100)<-7,FIXED(((C135- D135)/D135)*100, 1,TRUE) &\"%\" & \"▼\",IF((((C135- D135)/D135)*100)>7,FIXED(((C135- D135)/D135)*100, 1,TRUE) &\"%\" &\"▲\",FIXED(((C135- D135)/D135)*100, 1,TRUE)&\"%\")))","v":""}]
["Næstved, Slagelse og Ringsted Sygehuse","Skema 6.30: Konsulenter(Praksis)",229.46992975277453,235.036,2726.1784200000002,141.89612,-5.5660702472254684,"-2,4%"]
["Næstved, Slagelse og Ringsted Sygehuse","Skema 6.31: Videnskabsetisk Komité",null,null,null,null,0,""]
["Næstved, Slagelse og Ringsted Sygehuse","Skema 6.32: Tolkebistand",494.37599999999998,443.60399999999998,361.00049999999999,133.56649999999999,50.771999999999991,"11,4%▲","I 2023 har der været et større behov for tolkebistand."]
["Næstved, Slagelse og Ringsted Sygehuse","Skema 6.33: Dansk Center for Partikelterapi",null,null,null,null,0,""]
["Næstved, Slagelse og Ringsted Sygehuse","Skema 6.34: Politisk organisation – overførte udgifter fra funktion 4.10.01, 4.10.02 og 4.10.04",null,null,null,null,0,""]
["Næstved, Slagelse og Ringsted Sygehuse","Skema 6.35: Øvrige udgifter, Region Sjælland",null,null,1614.36718,1374.4559099999999,0,"","Kompetencecenter for lungesygdom er i 2022 overgået til Det Nære Sundhedsvæsen i Region Sjælland"]
["Næstved, Slagelse og Ringsted Sygehuse","Skema 6.36: Sundhedsydelser ifm. specialsektor",null,null,null,null,0,""]
["Næstved, Slagelse og Ringsted Sygehuse","Skema 6.37: Udgifter til primær sundhed fra skema 2",null,null,null,null,0,""]
["Næstved, Slagelse og Ringsted Sygehuse","Skema 6.38: Udgifter til primær sundhed fra skema 3",null,null,null,null,0,""]
["Næstved, Slagelse og Ringsted Sygehuse","Skema 6.39: Særlige udgifter ifm. COVID-19",null,116300,96204.209799999997,66754.3308311211,-116300,"-100,0%▼","Ikke relevant længere"]
["Næstved, Slagelse og Ringsted Sygehuse","Skema 6.40: Udleveret udstyr/tilbehør ifm. cochlear implantater",null,null,null,null,0,""]
["Næstved, Slagelse og Ringsted Sygehuse","Skema 6.41: Luxturna-behandling, Rigshospitalet",null,null,null,null,0,""]
["Næstved, Slagelse og Ringsted Sygehuse","Skema 6.42: Udleveret medicin",25262.487939999999,28479.1,24656.837357780001,null,-3216.6120599999995,"-11,3%▼","Stigende behov for udlevering af medicin"]
["Næstved, Slagelse og Ringsted Sygehuse","Skema 6.43: Udgifter ifm. sundhedsklynger",null,null,null,null,0,""]
["Næstved, Slagelse og Ringsted Sygehuse","Skema 6.44: Ukrainske patienter under særlov eller asyl",null,null,null,null,0,""]
["Næstved, Slagelse og Ringsted Sygehuse","Skema 6.45: Udgifter ifm. de særlige pladser i psykiatrien",null,null,null,null,0,""]
["Næstved, Slagelse og Ringsted Sygehuse","Skema 6.46: Sikringsafdelingen, Region Sjælland",null,null,null,null,0,""]
["Næstved, Slagelse og Ringsted Sygehuse","Skema 6.47: Øvrige (Kan kun benyttes efter aftale med Sundhedsdatastyrelsen)",null,null,null,null,0,""]
["Næstved, Slagelse og Ringsted Sygehuse","Lukkede poster (må kun bruges af Sundhedsdatastyrelsen)",null,null,null,null,0,""]
["Næstved, Slagelse og Ringsted Sygehuse","I alt",{"$f":"SUMIFS((C7:C154),(A7:A154),A155)","v":89659.318525387542},{"$f":"SUMIFS((D7:D154),(A7:A154),A155)","v":211370.011},{"$f":"SUMIFS((E7:E154),(A7:A154),A155)","v":196291.48299347999},{"$f":"SUMIFS((F7:F154),(A7:A154),A155)","v":142977.87149278121},-121710.69247461246,"-57,6%▼"]
["Nykøbing F,  Sygehus",null,null,null,null,null,0,""]
["Nykøbing F,  Sygehus","Skema 6.1: Center for voldsramte (Bispebjerg)",null,null,null,null,0,""]
["Nykøbing F,  Sygehus","Skema 6.2: Ventilatørbistand i hjemmet, respiratorpatienter",null,null,null,null,0,""]
["Nykøbing F,  Sygehus","Skema 6.3: Blodprøvetagning i eget hjem",null,null,null,null,0,""]
["Nykøbing F,  Sygehus","Skema 6.4: Psykinfo + pårørende",null,null,null,null,0,""]
["Nykøbing F,  Sygehus","Skema 6.5: Leveret udstyr til patienter i eget hjem, ilt og sonderemedier",981.52270280000005,713.33500000000004,676.69441599999993,{"$f":"721597.817/1000","v":721.59781700000008},268.18770280000001,"37,6%▲","Refusion til patienter (strøm m.m.) er steget pga stigende elpriser"]
["Nykøbing F,  Sygehus","Skema 6.6: Montebello (Nordsjællands Hospitaler)",null,null,null,null,0,""]
["Nykøbing F,  Sygehus","Skema 6.7: Satspulje korrektioner mellem år",null,null,null,null,0,""]
["Nykøbing F,  Sygehus","Skema 6.8: Klinisk farmakologisk rådgivning af praksissektoren",null,null,null,null,0,""]
["Nykøbing F,  Sygehus","Skema 6.9: Tandregulering ifm. operation",null,null,null,null,0,""]
["Nykøbing F,  Sygehus","Skema 6.10: Giftlinjen",null,null,null,null,0,""]
["Nykøbing F,  Sygehus","Skema 6.11: Tjenestemandspensioner",null,null,null,null,0,""]
["Nykøbing F,  Sygehus","Skema 6.12: Art 4.6 Betalinger til staten",null,null,null,null,0,""]
["Nykøbing F,  Sygehus","Skema 6.13: Art 4.7 Betalinger til kommuner",null,null,null,null,0,""]
["Nykøbing F,  Sygehus","Skema 6.14: Art 4.8 Betalinger til andre regioner",null,null,null,null,0,""]
["Nykøbing F,  Sygehus","Skema 6.15: Art 7.6 Betalinger fra staten",null,null,null,null,0,""]
["Nykøbing F,  Sygehus","Skema 6.16: Art 7.7 Betalinger fra kommuner",null,null,null,null,0,""]
["Nykøbing F,  Sygehus","Skema 6.17: Art 7.8 Betalinger fra andre regioner",null,null,null,null,0,""]
["Nykøbing F,  Sygehus","Skema 6.18: Betalinger til selvejende, private og udenlandske sygehuse",null,null,null,null,0,""]
["Nykøbing F,  Sygehus","Skema 6.19: Dækningsafgift/ejendomsskat",30.2496609398377,30.157,21.7979307285968,{"$f":"3365429.13/1000","v":3365.42913},9.266093983769963E-2,"0,3%"]
["Nykøbing F,  Sygehus","Skema 6.20: Forsikringer/erstatninger",6405.3763841762902,6144.0709999999999,6125.2073417751399,{"$f":"5207635.62/1000","v":5207.63562},261.30538417629032,"4,3%"]
["Nykøbing F,  Sygehus","Skema 6.21: Vederlagsfri Lab. –ydelser og andre ydelser til praksissektoren",4190.8692749000002,4250.473,4159.1573750999996,{"$f":"3953980.00296/1000","v":3953.9800029600001},-59.603725099999792,"-1,4%"]
["Nykøbing F,  Sygehus","Skema 6.22: Patienttransport",null,null,0,{"$f":"8014.65/1000","v":8.0146499999999996},0,""]
["Nykøbing F,  Sygehus","Skema 6.23: Serviceydelser til/fra andre institutioner eller sygehuse udenfor regionen",null,-400.24,null,null,400.24,"-100,0%▼","Dette tal for 2022 står forkert, da det vedrører forskning"]
["Nykøbing F,  Sygehus","Skema 6.24: Udgifter til eksternt finansierede forskning",-538.18399999999997,null,null,null,-538.18399999999997,""]
["Nykøbing F,  Sygehus","Skema 6.25: Forebyggelse rettet mod praksissektoren og kommuner",null,0,3.2240000000000002,{"$f":"47997/1000","v":47.997},0,""]
["Nykøbing F,  Sygehus","Skema 6.26: Praksisreservelæger",null,null,null,null,0,""]
["Nykøbing F,  Sygehus","Skema 6.27: Præhospital",627.19842840000001,597.71400000000006,646.38245710000001,{"$f":"586362.7995/1000","v":586.36279949999994},29.484428399999956,"4,9%"]
["Nykøbing F,  Sygehus","Skema 6.28: Udgifter til Danske Regioner (Kontigent, MedCom, Fællesproj.)",null,null,null,null,0,""]
["Nykøbing F,  Sygehus","Skema 6.29: Hospice",null,null,null,null,0,""]
["Nykøbing F,  Sygehus","Skema 6.30: Konsulenter(Praksis)",549.55187000000001,528.75300000000004,451.83250728313004,{"$f":"303368.74/1000","v":303.36874},20.798869999999965,"3,9%"]
["Nykøbing F,  Sygehus","Skema 6.31: Videnskabsetisk Komité",null,null,null,null,0,""]
["Nykøbing F,  Sygehus","Skema 6.32: Tolkebistand",116.03651000000001,131.816,125.4755,{"$f":"147695/1000","v":147.69499999999999},-15.779489999999996,"-12,0%▼","Uvæsentlige udsving"]
["Nykøbing F,  Sygehus","Skema 6.33: Dansk Center for Partikelterapi",null,null,null,null,0,""]
["Nykøbing F,  Sygehus","Skema 6.34: Politisk organisation – overførte udgifter fra funktion 4.10.01, 4.10.02 og 4.10.04",null,null,null,null,0,""]
["Nykøbing F,  Sygehus","Skema 6.35: Øvrige udgifter, Region Sjælland",null,null,null,null,0,""]
["Nykøbing F,  Sygehus","Skema 6.36: Sundhedsydelser ifm. specialsektor",null,null,null,null,0,""]
["Nykøbing F,  Sygehus","Skema 6.37: Udgifter til primær sundhed fra skema 2",null,null,null,null,0,""]
["Nykøbing F,  Sygehus","Skema 6.38: Udgifter til primær sundhed fra skema 3",null,null,null,null,0,""]
["Nykøbing F,  Sygehus","Skema 6.39: Særlige udgifter ifm. COVID-19",0,38658,48462.835180000002,{"$f":"30490572.3931866/1000","v":30490.572393186598},-38658,"-100,0%▼","Ikke relevant længere"]
["Nykøbing F,  Sygehus","Skema 6.40: Udleveret udstyr/tilbehør ifm. cochlear implantater",null,null,null,null,0,""]
["Nykøbing F,  Sygehus","Skema 6.41: Luxturna-behandling, Rigshospitalet",null,null,null,null,0,""]
["Nykøbing F,  Sygehus","Skema 6.42: Udleveret medicin",781.11400000000003,873.90800000000002,1700.02718,null,-92.793999999999983,"-10,6%▼","Almindelige udsving"]
["Nykøbing F,  Sygehus","Skema 6.43: Udgifter ifm. sundhedsklynger",null,null,null,null,{"$f":"IF(ISERROR(C199- D199)=TRUE,\"\",C199 - D199)","v":0},{"$f":"IF(ISERROR((((C199- D199)/D199)*100)=TRUE),\"\",IF((((C199- D199)/D199)*100)<-7,FIXED(((C199- D199)/D199)*100, 1,TRUE) &\"%\" & \"▼\",IF((((C199- D199)/D199)*100)>7,FIXED(((C199- D199)/D199)*100, 1,TRUE) &\"%\" &\"▲\",FIXED(((C199- D199)/D199)*100, 1,TRUE)&\"%\")))","v":""}]
["Nykøbing F,  Sygehus","Skema 6.44: Ukrainske patienter under særlov eller asyl",null,null,null,null,0,""]
["Nykøbing F,  Sygehus","Skema 6.45: Udgifter ifm. de særlige pladser i psykiatrien",null,null,null,null,0,""]
["Nykøbing F,  Sygehus","Skema 6.46: Sikringsafdelingen, Region Sjælland",null,null,null,null,0,""]
["Nykøbing F,  Sygehus","Skema 6.47: Øvrige (Kan kun benyttes efter aftale med Sundhedsdatastyrelsen)",null,null,null,null,0,""]
["Nykøbing F,  Sygehus","Lukkede poster (må kun bruges af Sundhedsdatastyrelsen)",null,null,null,null,0,""]
["Nykøbing F,  Sygehus","I alt",{"$f":"SUMIFS((C7:C204),(A7:A204),A205)","v":13143.734831216127},{"$f":"SUMIFS((D7:D204),(A7:A204),A205)","v":51527.987000000001},{"$f":"SUMIFS((E7:E204),(A7:A204),A205)","v":62372.633887986864},{"$f":"SUMIFS((F7:F204),(A7:A204),A205)","v":44832.653152646599},-38384.252168783874,"-74,5%▼","Stort fald pga. COVID-udgifter ikke længere tages ud"]
["Sygehus Nord",null,null,null,null,null,0,""]
["Sygehus Nord","Skema 6.1: Center for voldsramte (Bispebjerg)",null,null,null,null,0,""]
["Sygehus Nord","Skema 6.2: Ventilatørbistand i hjemmet, respiratorpatienter",null,null,null,null,0,""]
["Sygehus Nord","Skema 6.3: Blodprøvetagning i eget hjem",null,null,null,null,0,""]
["Sygehus Nord","Skema 6.4: Psykinfo + pårørende",null,null,null,null,0,""]
["Sygehus Nord","Skema 6.5: Leveret udstyr til patienter i eget hjem, ilt og sonderemedier",null,null,null,null,0,""]
["Sygehus Nord","Skema 6.6: Montebello (Nordsjællands Hospitaler)",null,null,null,null,0,""]
["Sygehus Nord","Skema 6.7: Satspulje korrektioner mellem år",null,null,null,null,0,""]
["Sygehus Nord","Skema 6.8: Klinisk farmakologisk rådgivning af praksissektoren",null,null,null,null,0,""]
["Sygehus Nord","Skema 6.9: Tandregulering ifm. operation",null,null,null,null,0,""]
["Sygehus Nord","Skema 6.10: Giftlinjen",null,null,null,null,0,""]
["Sygehus Nord","Skema 6.11: Tjenestemandspensioner",null,null,null,null,0,""]
["Sygehus Nord","Skema 6.12: Art 4.6 Betalinger til staten",null,null,null,null,0,""]
["Sygehus Nord","Skema 6.13: Art 4.7 Betalinger til kommuner",null,null,null,null,0,""]
["Sygehus Nord","Skema 6.14: Art 4.8 Betalinger til andre regioner",null,null,null,null,0,""]
["Sygehus Nord","Skema 6.15: Art 7.6 Betalinger fra staten",null,null,null,null,0,""]
["Sygehus Nord","Skema 6.16: Art 7.7 Betalinger fra kommuner",null,null,null,null,0,""]
["Sygehus Nord","Skema 6.17: Art 7.8 Betalinger fra andre regioner",null,null,null,null,0,""]
["Sygehus Nord","Skema 6.18: Betalinger til selvejende, private og udenlandske sygehuse",null,null,null,null,0,""]
["Sygehus Nord","Skema 6.19: Dækningsafgift/ejendomsskat",null,null,null,null,0,""]
["Sygehus Nord","Skema 6.20: Forsikringer/erstatninger",null,null,null,null,0,""]
["Sygehus Nord","Skema 6.21: Vederlagsfri Lab. –ydelser og andre ydelser til praksissektoren",null,null,null,null,0,""]
["Sygehus Nord","Skema 6.22: Patienttransport",null,null,null,null,0,""]
["Sygehus Nord","Skema 6.23: Serviceydelser til/fra andre institutioner eller sygehuse udenfor regionen",null,null,null,null,0,""]
["Sygehus Nord","Skema 6.24: Udgifter til eksternt finansierede forskning",null,null,null,null,0,""]
["Sygehus Nord","Skema 6.25: Forebyggelse rettet mod praksissektoren og kommuner",null,null,null,null,0,""]
["Sygehus Nord","Skema 6.26: Praksisreservelæger",null,null,null,null,0,""]
["Sygehus Nord","Skema 6.27: Præhospital",null,null,null,null,0,""]
["Sygehus Nord","Skema 6.28: Udgifter til Danske Regioner (Kontigent, MedCom, Fællesproj.)",null,null,null,null,0,""]
["Sygehus Nord","Skema 6.29: Hospice",null,null,null,null,0,""]
["Sygehus Nord","Skema 6.30: Konsulenter(Praksis)",null,null,null,null,0,""]
["Sygehus Nord","Skema 6.31: Videnskabsetisk Komité",null,null,null,null,0,""]
["Sygehus Nord","Skema 6.32: Tolkebistand",null,null,null,null,0,""]
["Sygehus Nord","Skema 6.33: Dansk Center for Partikelterapi",null,null,null,null,0,""]
["Sygehus Nord","Skema 6.34: Politisk organisation – overførte udgifter fra funktion 4.10.01, 4.10.02 og 4.10.04",null,null,null,null,0,""]
["Sygehus Nord","Skema 6.35: Øvrige udgifter, Region Sjælland",null,null,null,null,0,""]
["Sygehus Nord","Skema 6.36: Sundhedsydelser ifm. specialsektor",null,null,null,null,0,""]
["Sygehus Nord","Skema 6.37: Udgifter til primær sundhed fra skema 2",null,null,null,null,0,""]
["Sygehus Nord","Skema 6.38: Udgifter til primær sundhed fra skema 3",null,null,null,null,0,""]
["Sygehus Nord","Skema 6.39: Særlige udgifter ifm. COVID-19",null,null,null,null,0,""]
["Sygehus Nord","Skema 6.40: Udleveret udstyr/tilbehør ifm. cochlear implantater",null,null,null,null,0,""]
["Sygehus Nord","Skema 6.41: Luxturna-behandling, Rigshospitalet",null,null,null,null,0,""]
["Sygehus Nord","Skema 6.42: Udleveret medicin",null,null,null,null,0,""]
["Sygehus Nord","Skema 6.43: Udgifter ifm. sundhedsklynger",null,null,null,null,0,""]
["Sygehus Nord","Skema 6.44: Ukrainske patienter under særlov eller asyl",null,null,null,null,0,""]
["Sygehus Nord","Skema 6.45: Udgifter ifm. de særlige pladser i psykiatrien",null,null,null,null,0,""]
["Sygehus Nord","Skema 6.46: Sikringsafdelingen, Region Sjælland",null,null,null,null,0,""]
["Sygehus Nord","Skema 6.47: Øvrige (Kan kun benyttes efter aftale med Sundhedsdatastyrelsen)",null,null,null,null,0,""]
["Sygehus Nord","Lukkede poster (må kun bruges af Sundhedsdatastyrelsen)",null,null,null,null,0,""]
["Sygehus Nord","I alt",{"$f":"SUMIFS((C7:C254),(A7:A254),A255)","v":0},{"$f":"SUMIFS((D7:D254),(A7:A254),A255)","v":0},{"$f":"SUMIFS((E7:E254),(A7:A254),A255)","v":0},{"$f":"SUMIFS((F7:F254),(A7:A254),A255)","v":0},0,""]
["Sygehus Syd",null,null,null,null,null,0,""]
["Sygehus Syd","Skema 6.1: Center for voldsramte (Bispebjerg)",null,null,null,null,0,""]
["Sygehus Syd","Skema 6.2: Ventilatørbistand i hjemmet, respiratorpatienter",null,null,null,null,0,""]
["Sygehus Syd","Skema 6.3: Blodprøvetagning i eget hjem",null,null,null,null,0,""]
["Sygehus Syd","Skema 6.4: Psykinfo + pårørende",null,null,null,null,0,""]
["Sygehus Syd","Skema 6.5: Leveret udstyr til patienter i eget hjem, ilt og sonderemedier",null,null,null,null,0,""]
["Sygehus Syd","Skema 6.6: Montebello (Nordsjællands Hospitaler)",null,null,null,null,0,""]
["Sygehus Syd","Skema 6.7: Satspulje korrektioner mellem år",null,null,null,null,{"$f":"IF(ISERROR(C263- D263)=TRUE,\"\",C263 - D263)","v":0},{"$f":"IF(ISERROR((((C263- D263)/D263)*100)=TRUE),\"\",IF((((C263- D263)/D263)*100)<-7,FIXED(((C263- D263)/D263)*100, 1,TRUE) &\"%\" & \"▼\",IF((((C263- D263)/D263)*100)>7,FIXED(((C263- D263)/D263)*100, 1,TRUE) &\"%\" &\"▲\",FIXED(((C263- D263)/D263)*100, 1,TRUE)&\"%\")))","v":""}]
["Sygehus Syd","Skema 6.8: Klinisk farmakologisk rådgivning af praksissektoren",null,null,null,null,0,""]
["Sygehus Syd","Skema 6.9: Tandregulering ifm. operation",null,null,null,null,0,""]
["Sygehus Syd","Skema 6.10: Giftlinjen",null,null,null,null,0,""]
["Sygehus Syd","Skema 6.11: Tjenestemandspensioner",null,null,null,null,0,""]
["Sygehus Syd","Skema 6.12: Art 4.6 Betalinger til staten",null,null,null,null,0,""]
["Sygehus Syd","Skema 6.13: Art 4.7 Betalinger til kommuner",null,null,null,null,0,""]
["Sygehus Syd","Skema 6.14: Art 4.8 Betalinger til andre regioner",null,null,null,null,0,""]
["Sygehus Syd","Skema 6.15: Art 7.6 Betalinger fra staten",null,null,null,null,0,""]
["Sygehus Syd","Skema 6.16: Art 7.7 Betalinger fra kommuner",null,null,null,null,0,""]
["Sygehus Syd","Skema 6.17: Art 7.8 Betalinger fra andre regioner",null,null,null,null,0,""]
["Sygehus Syd","Skema 6.18: Betalinger til selvejende, private og udenlandske sygehuse",null,null,null,null,0,""]
["Sygehus Syd","Skema 6.19: Dækningsafgift/ejendomsskat",null,null,null,null,0,""]
["Sygehus Syd","Skema 6.20: Forsikringer/erstatninger",null,null,null,null,0,""]
["Sygehus Syd","Skema 6.21: Vederlagsfri Lab. –ydelser og andre ydelser til praksissektoren",null,null,null,null,0,""]
["Sygehus Syd","Skema 6.22: Patienttransport",null,null,null,null,0,""]
["Sygehus Syd","Skema 6.23: Serviceydelser til/fra andre institutioner eller sygehuse udenfor regionen",null,null,null,null,0,""]
["Sygehus Syd","Skema 6.24: Udgifter til eksternt finansierede forskning",null,null,null,null,0,""]
["Sygehus Syd","Skema 6.25: Forebyggelse rettet mod praksissektoren og kommuner",null,null,null,null,0,""]
["Sygehus Syd","Skema 6.26: Praksisreservelæger",null,null,null,null,0,""]
["Sygehus Syd","Skema 6.27: Præhospital",null,null,null,null,0,""]
["Sygehus Syd","Skema 6.28: Udgifter til Danske Regioner (Kontigent, MedCom, Fællesproj.)",null,null,null,null,0,""]
["Sygehus Syd","Skema 6.29: Hospice",null,null,null,null,0,""]
["Sygehus Syd","Skema 6.30: Konsulenter(Praksis)",null,null,null,null,0,""]
["Sygehus Syd","Skema 6.31: Videnskabsetisk Komité",null,null,null,null,0,""]
["Sygehus Syd","Skema 6.32: Tolkebistand",null,null,null,null,0,""]
["Sygehus Syd","Skema 6.33: Dansk Center for Partikelterapi",null,null,null,null,0,""]
["Sygehus Syd","Skema 6.34: Politisk organisation – overførte udgifter fra funktion 4.10.01, 4.10.02 og 4.10.04",null,null,null,null,0,""]
["Sygehus Syd","Skema 6.35: Øvrige udgifter, Region Sjælland",null,null,null,null,0,""]
["Sygehus Syd","Skema 6.36: Sundhedsydelser ifm. specialsektor",null,null,null,null,0,""]
["Sygehus Syd","Skema 6.37: Udgifter til primær sundhed fra skema 2",null,null,null,null,0,""]
["Sygehus Syd","Skema 6.38: Udgifter til primær sundhed fra skema 3",null,null,null,null,0,""]
["Sygehus Syd","Skema 6.39: Særlige udgifter ifm. COVID-19",null,null,null,null,0,""]
["Sygehus Syd","Skema 6.40: Udleveret udstyr/tilbehør ifm. cochlear implantater",null,null,null,null,0,""]
["Sygehus Syd","Skema 6.41: Luxturna-behandling, Rigshospitalet",null,null,null,null,0,""]
["Sygehus Syd","Skema 6.42: Udleveret medicin",null,null,null,null,0,""]
["Sygehus Syd","Skema 6.43: Udgifter ifm. sundhedsklynger",null,null,null,null,0,""]
["Sygehus Syd","Skema 6.44: Ukrainske patienter under særlov eller asyl",null,null,null,null,0,""]
["Sygehus Syd","Skema 6.45: Udgifter ifm. de særlige pladser i psykiatrien",null,null,null,null,0,""]
["Sygehus Syd","Skema 6.46: Sikringsafdelingen, Region Sjælland",null,null,null,null,0,""]
["Sygehus Syd","Skema 6.47: Øvrige (Kan kun benyttes efter aftale med Sundhedsdatastyrelsen)",null,null,null,null,0,""]
["Sygehus Syd","Lukkede poster (må kun bruges af Sundhedsdatastyrelsen)",null,null,null,null,0,""]
["Sygehus Syd","I alt",{"$f":"SUMIFS((C7:C304),(A7:A304),A305)","v":0},{"$f":"SUMIFS((D7:D304),(A7:A304),A305)","v":0},{"$f":"SUMIFS((E7:E304),(A7:A304),A305)","v":0},{"$f":"SUMIFS((F7:F304),(A7:A304),A305)","v":0},0,""]
["Garantiklinikken",null,null,null,null,null,0,""]
["Garantiklinikken","Skema 6.1: Center for voldsramte (Bispebjerg)",null,null,null,null,0,""]
["Garantiklinikken","Skema 6.2: Ventilatørbistand i hjemmet, respiratorpatienter",null,null,null,null,0,""]
["Garantiklinikken","Skema 6.3: Blodprøvetagning i eget hjem",null,null,null,null,0,""]
["Garantiklinikken","Skema 6.4: Psykinfo + pårørende",null,null,null,null,0,""]
["Garantiklinikken","Skema 6.5: Leveret udstyr til patienter i eget hjem, ilt og sonderemedier",null,null,null,null,0,""]
["Garantiklinikken","Skema 6.6: Montebello (Nordsjællands Hospitaler)",null,null,null,null,0,""]
["Garantiklinikken","Skema 6.7: Satspulje korrektioner mellem år",null,null,null,null,0,""]
["Garantiklinikken","Skema 6.8: Klinisk farmakologisk rådgivning af praksissektoren",null,null,null,null,0,""]
["Garantiklinikken","Skema 6.9: Tandregulering ifm. operation",null,null,null,null,0,""]
["Garantiklinikken","Skema 6.10: Giftlinjen",null,null,null,null,0,""]
["Garantiklinikken","Skema 6.11: Tjenestemandspensioner",null,null,null,null,0,""]
["Garantiklinikken","Skema 6.12: Art 4.6 Betalinger til staten",null,null,null,null,0,""]
["Garantiklinikken","Skema 6.13: Art 4.7 Betalinger til kommuner",null,null,null,null,0,""]
["Garantiklinikken","Skema 6.14: Art 4.8 Betalinger til andre regioner",null,null,null,null,0,""]
["Garantiklinikken","Skema 6.15: Art 7.6 Betalinger fra staten",null,null,null,null,0,""]
["Garantiklinikken","Skema 6.16: Art 7.7 Betalinger fra kommuner",null,null,null,null,0,""]
["Garantiklinikken","Skema 6.17: Art 7.8 Betalinger fra andre regioner",null,null,null,null,0,""]
["Garantiklinikken","Skema 6.18: Betalinger til selvejende, private og udenlandske sygehuse",null,null,null,null,0,""]
["Garantiklinikken","Skema 6.19: Dækningsafgift/ejendomsskat",null,null,null,null,0,""]
["Garantiklinikken","Skema 6.20: Forsikringer/erstatninger",null,null,null,null,0,""]
["Garantiklinikken","Skema 6.21: Vederlagsfri Lab. –ydelser og andre ydelser til praksissektoren",null,null,null,null,{"$f":"IF(ISERROR(C327- D327)=TRUE,\"\",C327 - D327)","v":0},{"$f":"IF(ISERROR((((C327- D327)/D327)*100)=TRUE),\"\",IF((((C327- D327)/D327)*100)<-7,FIXED(((C327- D327)/D327)*100, 1,TRUE) &\"%\" & \"▼\",IF((((C327- D327)/D327)*100)>7,FIXED(((C327- D327)/D327)*100, 1,TRUE) &\"%\" &\"▲\",FIXED(((C327- D327)/D327)*100, 1,TRUE)&\"%\")))","v":""}]
["Garantiklinikken","Skema 6.22: Patienttransport",null,null,null,null,0,""]
["Garantiklinikken","Skema 6.23: Serviceydelser til/fra andre institutioner eller sygehuse udenfor regionen",null,null,null,null,0,""]
["Garantiklinikken","Skema 6.24: Udgifter til eksternt finansierede forskning",null,null,null,null,0,""]
["Garantiklinikken","Skema 6.25: Forebyggelse rettet mod praksissektoren og kommuner",null,null,null,null,0,""]
["Garantiklinikken","Skema 6.26: Praksisreservelæger",null,null,null,null,0,""]
["Garantiklinikken","Skema 6.27: Præhospital",null,null,null,null,0,""]
["Garantiklinikken","Skema 6.28: Udgifter til Danske Regioner (Kontigent, MedCom, Fællesproj.)",null,null,null,null,0,""]
["Garantiklinikken","Skema 6.29: Hospice",null,null,null,null,0,""]
["Garantiklinikken","Skema 6.30: Konsulenter(Praksis)",null,null,null,null,0,""]
["Garantiklinikken","Skema 6.31: Videnskabsetisk Komité",null,null,null,null,0,""]
["Garantiklinikken","Skema 6.32: Tolkebistand",null,null,null,null,0,""]
["Garantiklinikken","Skema 6.33: Dansk Center for Partikelterapi",null,null,null,null,0,""]
["Garantiklinikken","Skema 6.34: Politisk organisation – overførte udgifter fra funktion 4.10.01, 4.10.02 og 4.10.04",null,null,null,null,0,""]
["Garantiklinikken","Skema 6.35: Øvrige udgifter, Region Sjælland",null,null,null,null,0,""]
["Garantiklinikken","Skema 6.36: Sundhedsydelser ifm. specialsektor",null,null,null,null,0,""]
["Garantiklinikken","Skema 6.37: Udgifter til primær sundhed fra skema 2",null,null,null,null,0,""]
["Garantiklinikken","Skema 6.38: Udgifter til primær sundhed fra skema 3",null,null,null,null,0,""]
["Garantiklinikken","Skema 6.39: Særlige udgifter ifm. COVID-19",null,null,null,null,0,""]
["Garantiklinikken","Skema 6.40: Udleveret udstyr/tilbehør ifm. cochlear implantater",null,null,null,null,0,""]
["Garantiklinikken","Skema 6.41: Luxturna-behandling, Rigshospitalet",null,null,null,null,0,""]
["Garantiklinikken","Skema 6.42: Udleveret medicin",null,null,null,null,0,""]
["Garantiklinikken","Skema 6.43: Udgifter ifm. sundhedsklynger",null,null,null,null,0,""]
["Garantiklinikken","Skema 6.44: Ukrainske patienter under særlov eller asyl",null,null,null,null,0,""]
["Garantiklinikken","Skema 6.45: Udgifter ifm. de særlige pladser i psykiatrien",null,null,null,null,0,""]
["Garantiklinikken","Skema 6.46: Sikringsafdelingen, Region Sjælland",null,null,null,null,0,""]
["Garantiklinikken","Skema 6.47: Øvrige (Kan kun benyttes efter aftale med Sundhedsdatastyrelsen)",null,null,null,null,0,""]
["Garantiklinikken","Lukkede poster (må kun bruges af Sundhedsdatastyrelsen)",null,null,null,null,0,""]
["Garantiklinikken","I alt",{"$f":"SUMIFS((C7:C354),(A7:A354),A355)","v":0},{"$f":"SUMIFS((D7:D354),(A7:A354),A355)","v":0},{"$f":"SUMIFS((E7:E354),(A7:A354),A355)","v":0},{"$f":"SUMIFS((F7:F354),(A7:A354),A355)","v":0},0,""]
["Øvrige i Region Sjælland",null,null,null,null,null,0,""]
["Øvrige i Region Sjælland","Skema 6.1: Center for voldsramte (Bispebjerg)",null,null,null,null,0,""]
["Øvrige i Region Sjælland","Skema 6.2: Ventilatørbistand i hjemmet, respiratorpatienter",null,null,null,null,0,""]
["Øvrige i Region Sjælland","Skema 6.3: Blodprøvetagning i eget hjem",null,null,null,null,0,""]
["Øvrige i Region Sjælland","Skema 6.4: Psykinfo + pårørende",null,null,null,null,0,""]
["Øvrige i Region Sjælland","Skema 6.5: Leveret udstyr til patienter i eget hjem, ilt og sonderemedier",null,null,null,null,0,""]
["Øvrige i Region Sjælland","Skema 6.6: Montebello (Nordsjællands Hospitaler)",null,null,null,null,0,""]
["Øvrige i Region Sjælland","Skema 6.7: Satspulje korrektioner mellem år",null,null,null,null,0,""]
["Øvrige i Region Sjælland","Skema 6.8: Klinisk farmakologisk rådgivning af praksissektoren",null,null,null,null,0,""]
["Øvrige i Region Sjælland","Skema 6.9: Tandregulering ifm. operation",null,null,null,null,0,""]
["Øvrige i Region Sjælland","Skema 6.10: Giftlinjen",null,null,null,null,0,""]
["Øvrige i Region Sjælland","Skema 6.11: Tjenestemandspensioner",null,null,null,null,0,""]
["Øvrige i Region Sjælland","Skema 6.12: Art 4.6 Betalinger til staten",null,null,null,null,0,""]
["Øvrige i Region Sjælland","Skema 6.13: Art 4.7 Betalinger til kommuner",null,null,null,null,0,""]
["Øvrige i Region Sjælland","Skema 6.14: Art 4.8 Betalinger til andre regioner",null,null,null,null,0,""]
["Øvrige i Region Sjælland","Skema 6.15: Art 7.6 Betalinger fra staten",null,null,null,null,0,""]
["Øvrige i Region Sjælland","Skema 6.16: Art 7.7 Betalinger fra kommuner",null,null,null,null,0,""]
["Øvrige i Region Sjælland","Skema 6.17: Art 7.8 Betalinger fra andre regioner",null,null,null,null,0,""]
["Øvrige i Region Sjælland","Skema 6.18: Betalinger til selvejende, private og udenlandske sygehuse",null,null,null,null,0,""]
["Øvrige i Region Sjælland","Skema 6.19: Dækningsafgift/ejendomsskat",null,null,null,null,0,""]
["Øvrige i Region Sjælland","Skema 6.20: Forsikringer/erstatninger",null,null,null,null,0,""]
["Øvrige i Region Sjælland","Skema 6.21: Vederlagsfri Lab. –ydelser og andre ydelser til praksissektoren",null,null,null,null,0,""]
["Øvrige i Region Sjælland","Skema 6.22: Patienttransport",null,null,null,null,0,""]
["Øvrige i Region Sjælland","Skema 6.23: Serviceydelser til/fra andre institutioner eller sygehuse udenfor regionen",null,null,null,null,0,""]
["Øvrige i Region Sjælland","Skema 6.24: Udgifter til eksternt finansierede forskning",null,null,null,null,0,""]
["Øvrige i Region Sjælland","Skema 6.25: Forebyggelse rettet mod praksissektoren og kommuner",null,null,null,null,0,""]
["Øvrige i Region Sjælland","Skema 6.26: Praksisreservelæger",null,null,null,null,0,""]
["Øvrige i Region Sjælland","Skema 6.27: Præhospital",null,null,null,null,0,""]
["Øvrige i Region Sjælland","Skema 6.28: Udgifter til Danske Regioner (Kontigent, MedCom, Fællesproj.)",null,null,null,null,0,""]
["Øvrige i Region Sjælland","Skema 6.29: Hospice",null,null,null,null,0,""]
["Øvrige i Region Sjælland","Skema 6.30: Konsulenter(Praksis)",null,null,null,null,0,""]
["Øvrige i Region Sjælland","Skema 6.31: Videnskabsetisk Komité",null,null,null,null,0,""]
["Øvrige i Region Sjælland","Skema 6.32: Tolkebistand",null,null,null,null,0,""]
["Øvrige i Region Sjælland","Skema 6.33: Dansk Center for Partikelterapi",null,null,null,null,0,""]
["Øvrige i Region Sjælland","Skema 6.34: Politisk organisation – overførte udgifter fra funktion 4.10.01, 4.10.02 og 4.10.04",null,null,null,null,0,""]
["Øvrige i Region Sjælland","Skema 6.35: Øvrige udgifter, Region Sjælland",null,null,null,null,{"$f":"IF(ISERROR(C391- D391)=TRUE,\"\",C391 - D391)","v":0},{"$f":"IF(ISERROR((((C391- D391)/D391)*100)=TRUE),\"\",IF((((C391- D391)/D391)*100)<-7,FIXED(((C391- D391)/D391)*100, 1,TRUE) &\"%\" & \"▼\",IF((((C391- D391)/D391)*100)>7,FIXED(((C391- D391)/D391)*100, 1,TRUE) &\"%\" &\"▲\",FIXED(((C391- D391)/D391)*100, 1,TRUE)&\"%\")))","v":""}]
["Øvrige i Region Sjælland","Skema 6.36: Sundhedsydelser ifm. specialsektor",null,null,null,null,0,""]
["Øvrige i Region Sjælland","Skema 6.37: Udgifter til primær sundhed fra skema 2",null,null,null,null,0,""]
["Øvrige i Region Sjælland","Skema 6.38: Udgifter til primær sundhed fra skema 3",null,null,null,null,0,""]
["Øvrige i Region Sjælland","Skema 6.39: Særlige udgifter ifm. COVID-19",null,null,null,null,0,""]
["Øvrige i Region Sjælland","Skema 6.40: Udleveret udstyr/tilbehør ifm. cochlear implantater",null,null,null,null,0,""]
["Øvrige i Region Sjælland","Skema 6.41: Luxturna-behandling, Rigshospitalet",null,null,null,null,0,""]
["Øvrige i Region Sjælland","Skema 6.42: Udleveret medicin",null,null,null,null,0,""]
["Øvrige i Region Sjælland","Skema 6.43: Udgifter ifm. sundhedsklynger",null,null,null,null,0,""]
["Øvrige i Region Sjælland","Skema 6.44: Ukrainske patienter under særlov eller asyl",null,null,null,null,0,""]
["Øvrige i Region Sjælland","Skema 6.45: Udgifter ifm. de særlige pladser i psykiatrien",null,null,null,null,0,""]
["Øvrige i Region Sjælland","Skema 6.46: Sikringsafdelingen, Region Sjælland",null,null,null,null,0,""]
["Øvrige i Region Sjælland","Skema 6.47: Øvrige (Kan kun benyttes efter aftale med Sundhedsdatastyrelsen)",null,null,null,null,0,""]
["Øvrige i Region Sjælland","Lukkede poster (må kun bruges af Sundhedsdatastyrelsen)",null,null,null,null,0,""]
["Øvrige i Region Sjælland","I alt",{"$f":"SUMIFS((C7:C404),(A7:A404),A405)","v":0},{"$f":"SUMIFS((D7:D404),(A7:A404),A405)","v":0},{"$f":"SUMIFS((E7:E404),(A7:A404),A405)","v":0},{"$f":"SUMIFS((F7:F404),(A7:A404),A405)","v":0},0,""]
["Ikke fordelte udgifter og indtægter",null,null,null,null,null,0,""]
["Ikke fordelte udgifter og indtægter","Skema 6.1: Center for voldsramte (Bispebjerg)",null,null,null,null,0,""]
["Ikke fordelte udgifter og indtægter","Skema 6.2: Ventilatørbistand i hjemmet, respiratorpatienter",null,null,null,null,0,""]
["Ikke fordelte udgifter og indtægter","Skema 6.3: Blodprøvetagning i eget hjem",null,null,null,null,0,""]
["Ikke fordelte udgifter og indtægter","Skema 6.4: Psykinfo + pårørende",null,null,null,null,0,""]
["Ikke fordelte udgifter og indtægter","Skema 6.5: Leveret udstyr til patienter i eget hjem, ilt og sonderemedier",null,null,null,null,0,""]
["Ikke fordelte udgifter og indtægter","Skema 6.6: Montebello (Nordsjællands Hospitaler)",null,null,null,null,0,""]
["Ikke fordelte udgifter og indtægter","Skema 6.7: Satspulje korrektioner mellem år",null,null,null,null,0,""]
["Ikke fordelte udgifter og indtægter","Skema 6.8: Klinisk farmakologisk rådgivning af praksissektoren",null,null,null,null,0,""]
["Ikke fordelte udgifter og indtægter","Skema 6.9: Tandregulering ifm. operation",null,null,null,null,0,""]
["Ikke fordelte udgifter og indtægter","Skema 6.10: Giftlinjen",null,null,null,null,0,""]
["Ikke fordelte udgifter og indtægter","Skema 6.11: Tjenestemandspensioner",325415.667346537,324018.17857852799,696143.13751000003,453549.15623000002,1397.4887680090033,"0,4%"]
["Ikke fordelte udgifter og indtægter","Skema 6.12: Art 4.6 Betalinger til staten",null,null,null,null,0,""]
["Ikke fordelte udgifter og indtægter","Skema 6.13: Art 4.7 Betalinger til kommuner",60538.271639999999,48092.775079999999,52128.678189999999,66893.096770000004,12445.49656,"25,9%▲","Se note 5"]
["Ikke fordelte udgifter og indtægter","Skema 6.14: Art 4.8 Betalinger til andre regioner",2222401.8602100001,2429323.2609999999,2211092.2142599998,2320087.4383299998,-206921.40078999987,"-8,5%▼","Se note 6"]
["Ikke fordelte udgifter og indtægter","Skema 6.15: Art 7.6 Betalinger fra staten",-214307.12798547401,-218500.85373078601,-226005.13529999999,-233714.95653,4193.7257453119964,"-1,9%"]
["Ikke fordelte udgifter og indtægter","Skema 6.16: Art 7.7 Betalinger fra kommuner",-60494.98631,-65615.486199999999,-67009.187919999997,-64605.894650000002,5120.4998899999991,"-7,8%▼","Se note 7"]
["Ikke fordelte udgifter og indtægter","Skema 6.17: Art 7.8 Betalinger fra andre regioner",-115413.318,-104875.526,-106857.17049999999,-85278.774399999995,-10537.792000000001,"10,0%▲","Se note 8"]
["Ikke fordelte udgifter og indtægter","Skema 6.18: Betalinger til selvejende, private og udenlandske sygehuse",585387.85647,574380.86424000002,490334.04732000001,347810.04028000002,11006.992229999974,"1,9%"]
["Ikke fordelte udgifter og indtægter","Skema 6.19: Dækningsafgift/ejendomsskat",null,null,null,null,0,""]
["Ikke fordelte udgifter og indtægter","Skema 6.20: Forsikringer/erstatninger",152737.014372181,180258.72751199701,104621.81750999999,178535.0509,-27521.713139816013,"-15,3%▼","Se note 9"]
["Ikke fordelte udgifter og indtægter","Skema 6.21: Vederlagsfri Lab. –ydelser og andre ydelser til praksissektoren",null,null,null,null,0,""]
["Ikke fordelte udgifter og indtægter","Skema 6.22: Patienttransport",797222.16784023005,781175.81826554995,800281.80561000004,708448.89489999996,16046.349574680091,"2,1%"]
["Ikke fordelte udgifter og indtægter","Skema 6.23: Serviceydelser til/fra andre institutioner eller sygehuse udenfor regionen",null,null,null,null,0,""]
["Ikke fordelte udgifter og indtægter","Skema 6.24: Udgifter til eksternt finansierede forskning",null,null,null,null,0,""]
["Ikke fordelte udgifter og indtægter","Skema 6.25: Forebyggelse rettet mod praksissektoren og kommuner",null,null,null,191.93413000000001,0,""]
["Ikke fordelte udgifter og indtægter","Skema 6.26: Praksisreservelæger",null,null,null,null,0,""]
["Ikke fordelte udgifter og indtægter","Skema 6.27: Præhospital",null,null,null,null,0,""]
["Ikke fordelte udgifter og indtægter","Skema 6.28: Udgifter til Danske Regioner (Kontigent, MedCom, Fællesproj.)",66197.464314818193,67655.053564510396,66252.800409999996,54784.124190000002,-1457.5892496922024,"-2,2%"]
["Ikke fordelte udgifter og indtægter","Skema 6.29: Hospice",null,null,null,null,0,""]
["Ikke fordelte udgifter og indtægter","Skema 6.30: Konsulenter(Praksis)",null,null,null,null,0,""]
["Ikke fordelte udgifter og indtægter","Skema 6.31: Videnskabsetisk Komité",null,null,null,null,0,""]
["Ikke fordelte udgifter og indtægter","Skema 6.32: Tolkebistand",null,null,null,null,0,""]
["Ikke fordelte udgifter og indtægter","Skema 6.33: Dansk Center for Partikelterapi",null,null,null,null,0,""]
["Ikke fordelte udgifter og indtægter","Skema 6.34: Politisk organisation – overførte udgifter fra funktion 4.10.01, 4.10.02 og 4.10.04",14228.9340365631,14758.606878504301,15346.49001,13254.45449,-529.67284194120111,"-3,6%"]
["Ikke fordelte udgifter og indtægter","Skema 6.35: Øvrige udgifter, Region Sjælland",26582.377036766899,34718.737282124101,62097.534429999898,29839.764910000002,-8136.3602453572021,"-23,4%▼","Se note 10"]
["Ikke fordelte udgifter og indtægter","Skema 6.36: Sundhedsydelser ifm. specialsektor",null,null,"",null,0,""]
["Ikke fordelte udgifter og indtægter","Skema 6.37: Udgifter til primær sundhed fra skema 2",379761.46346300101,797946.91908643895,979701.97820000001,451374.79960000003,-418185.45562343794,"-52,4%▼","Se note 11"]
["Ikke fordelte udgifter og indtægter","Skema 6.38: Udgifter til primær sundhed fra skema 3",219053.05834253499,209528.770589675,200963.29078000001,178504.90182,9524.2877528599929,"4,5%"]
["Ikke fordelte udgifter og indtægter","Skema 6.39: Særlige udgifter ifm. COVID-19",null,-295911.527394376,-418316.57882,44402.470820000002,295911.527394376,"-100,0%▼","Ikke relevant længere"]
["Ikke fordelte udgifter og indtægter","Skema 6.40: Udleveret udstyr/tilbehør ifm. cochlear implantater",null,null,null,null,0,""]
["Ikke fordelte udgifter og indtægter","Skema 6.41: Luxturna-behandling, Rigshospitalet",null,null,null,null,0,""]
["Ikke fordelte udgifter og indtægter","Skema 6.42: Udleveret medicin",null,null,null,null,0,""]
["Ikke fordelte udgifter og indtægter","Skema 6.43: Udgifter ifm. sundhedsklynger",null,null,null,null,0,""]
["Ikke fordelte udgifter og indtægter","Skema 6.44: Ukrainske patienter under særlov eller asyl",null,null,null,null,0,""]
["Ikke fordelte udgifter og indtægter","Skema 6.45: Udgifter ifm. de særlige pladser i psykiatrien",null,null,null,null,0,""]
["Ikke fordelte udgifter og indtægter","Skema 6.46: Sikringsafdelingen, Region Sjælland",null,null,null,null,0,""]
["Ikke fordelte udgifter og indtægter","Skema 6.47: Øvrige (Kan kun benyttes efter aftale med Sundhedsdatastyrelsen)",null,null,null,null,0,""]
["Ikke fordelte udgifter og indtægter","Lukkede poster (må kun bruges af Sundhedsdatastyrelsen)",null,null,null,null,0,""]
["Ikke fordelte udgifter og indtægter","I alt",{"$f":"SUMIFS((C7:C454),(A7:A454),A455)","v":4459310.7027771585},{"$f":"SUMIFS((D7:D454),(A7:A454),A455)","v":4776954.318752165},{"$f":"SUMIFS((E7:E454),(A7:A454),A455)","v":4860775.72169},{"$f":"SUMIFS((F7:F454),(A7:A454),A455)","v":4464076.5017900001},-317643.61597500648,"-6,6%"]

{"sheet":"Skema 7","index":6,"n_rows":18,"n_cols":13,"rows_kept":18,"cut":false,"hidden":false,"merged":[[4,1,4,2],[1,1,2,8],[4,4,4,5],[4,7,4,8],[4,10,4,11]]}
["Region Sjælland, somatiske sygehuse."]
[null,"Skema 7: Vederlagsfrie ydelser mellem sygehusene. (1.000 kr.)"]
[]
[]
["Sygehus",2023,null,2023,2022,null,2022,2021,null,2021,2020,null,2020]
[null,"Leverede","Modtagne","Lev. - Mod.","Leverede","Modtagne","Lev. - Mod.","Leverede","Modtagne","Lev. - Mod.","Leverede","Modtagne","Lev. - Mod."]
["Sjællands Universitetshospital",139065.34376729501,74785.6112115656,{"$f":"$B$7-$C$7","v":64279.73255572941},114884.63800000001,88901.902000000002,{"$f":"$E$7-$F$7","v":25982.736000000004},109892.5351215338,66413.25676580648,{"$f":"$H$7-$I$7","v":43479.278355727321},106778.57123031102,70630.183553125782,{"$f":"$K$7-$L$7","v":36148.387677185237}]
["Holbæk Sygehus",17473.032735553799,43629.557461457996,{"$f":"$B$8-$C$8","v":-26156.524725904197},33347.597999999998,41269.252999999997,{"$f":"$E$8-$F$8","v":-7921.6549999999988},13936.496999999999,37311.373,{"$f":"$H$8-$I$8","v":-23374.876},13879.841,35271.256000000001,{"$f":"$K$8-$L$8","v":-21391.415000000001}]
["Næstved, Slagelse og Ringsted Sygehuse",61049.112033212499,65812.109292584195,{"$f":"$B$9-$C$9","v":-4762.9972593716957},93828.664999999994,49796.599000000002,{"$f":"$E$9-$F$9","v":44032.065999999992},84292.792090000003,54303.171309999998,{"$f":"$H$9-$I$9","v":29989.620780000005},88620.541871984795,52409.116892051097,{"$f":"$K$9-$L$9","v":36211.424979933698}]
["Nykøbing F.  Sygehus",20022.2361810072,44921.991258461603,{"$f":"$B$10-$C$10","v":-24899.755077454403},25484.307000000001,78541.853000000003,{"$f":"$E$10-$F$10","v":-53057.546000000002},24902.979275065198,66299.270316942493,{"$f":"$H$10-$I$10","v":-41396.291041877295},{"$f":"20670705/1000","v":20670.705000000002},{"$f":"63157288/1000","v":63157.288},{"$f":"$K$10-$L$10","v":-42486.582999999999}]
["Sygehus Nord",null,null,{"$f":"$B$11-$C$11","v":0},null,null,{"$f":"$E$11-$F$11","v":0},null,null,{"$f":"$H$11-$I$11","v":0},null,null,{"$f":"$K$11-$L$11","v":0}]
["Sygehus Syd",null,null,{"$f":"$B$12-$C$12","v":0},null,null,{"$f":"$E$12-$F$12","v":0},null,null,{"$f":"$H$12-$I$12","v":0},null,null,{"$f":"$K$12-$L$12","v":0}]
["Garantiklinikken",null,null,{"$f":"$B$13-$C$13","v":0},null,null,{"$f":"$E$13-$F$13","v":0},null,null,{"$f":"$H$13-$I$13","v":0},null,null,{"$f":"$K$13-$L$13","v":0}]
["Øvrige i Region Sjælland",null,null,{"$f":"$B$14-$C$14","v":0},null,null,{"$f":"$E$14-$F$14","v":0},null,null,{"$f":"$H$14-$I$14","v":0},null,null,{"$f":"$K$14-$L$14","v":0}]
["Ikke fordelte udgifter Region Sjælland, somatik",null,null,{"$f":"$B$15-$C$15","v":0},null,null,{"$f":"$E$15-$F$15","v":0},null,null,{"$f":"$H$15-$I$15","v":0},null,null,{"$f":"$K$15-$L$15","v":0}]
["I alt",{"$f":"SUM(B7:B15)","v":237609.72471706852},{"$f":"SUM(C7:C15)","v":229149.2692240694},{"$f":"SUM(D7:D15)","v":8460.4554929991173},{"$f":"SUM(E7:E15)","v":267545.20799999998},258509.60700000002,9035.6009999999951,233024.803486599,224327.07139274897,8697.7320938500343,{"$f":"SUM(K7:K15)","v":229949.65910229582},221467.84444517689,8481.8146571189354]
[]
["NB: Afstem med psykiatrien"]

{"sheet":"Rapport","index":7,"n_rows":99,"n_cols":6,"rows_kept":99,"cut":false,"hidden":false,"merged":[]}
[]
[null,"Skema 1: Udgifter og indtægter på sygehusene/enhederne, eksklusiv omkostningssted 0001, Fælleskonto. (1.000 kr.)"]
[null,null,2023,2022,2021,2020]
[null,"Hovedart 1: Lønninger",6443779.9309099996,6302916.059989999,5914031.4581899997,5623207.28553]
[null,"Hovedart 2: Varekøb",1042178.4367600001,1031875.1717100001,1027846.54682,1115507.2679599994]
[null,"Hovedart 4: Tjenesteydelser m.v. ",981364.73200000008,941298.49651000008,866305.2374000001,708003.36581999995]
[null,"Hovedart 5: Tilskud og overførsler",4770.42731,4316.51865,3259.0547200000001,3269.2523899999997]
[null,"Hovedart 6: Finansudgifter",475.78,0,-2992,661.80722999999989]
[null,"Hovedart 7: Indtægter",-422421.28255,-300495.9186899999,-308732.78206999978,-254620.03897999992]
[null,"Hovedart 8: Finansindtægter",-478.39800000000002,0,0,0]
[null,"Hovedart 9: Interne udgifter og indtægter",1213772.89102,1255792.2601300001,1236426.0103399998,1243378.4146699996]
[null,"I alt",9263442.5174499992,9235702.588299999,8736143.5253999997,8439407.3546199985]
[]
[null,"Skema 2: Fællesudgifter og -indtægter vedrørende sygehusene.\n(1.000 kr.)"]
[null,null,2023,2022,2021,2020]
[null,"Hovedart 1: Lønninger",913638.29606377543,968529.46655381122,1191187.97658,770609.13257230003]
[null,"Hovedart 2: Varekøb",1100231.749340317,1147054.1313841401,1228473.0798800001,1141344.8740435001]
[null,"Hovedart 4: Tjenesteydelser m.v. ",4358317.7885744255,4791535.0113526331,4318354.7482200004,4175977.8082343997]
[null,"Hovedart 5: Tilskud og overførsler",144576.64274000001,199988.08454000001,129569.97261000001,134192.29664280001]
[null,"Hovedart 6: Finansudgifter",0,0.31,-146.76027999999999,-124.7277603]
[null,"Hovedart 7: Indtægter",-675360.41007003887,-1039505.3847671761,-1148151.5377800001,-538529.34138530004]
[null,"Hovedart 8: Finansindtægter",-388.11685276006756,0,0,-69600]
[null,"Hovedart 9: Interne udgifter og indtægter",-1223855.632814554,-1189291.9376597521,-1171494.1931100001,-1183446.5497738002]
[null,"I alt",4617160.3169811647,4878309.6814036556,4547793.2861199994,4430423.4925736012]
[]
[null,"Skema 3: Regionale fællesudgifter og -indtægter. (1.000 kr.)"]
[null,null,2023,2022,2021,2020]
[null,"1.70.50: Andel af fællesudgifter",863932.48494379641,837262.5199010449,1183947.0588799999,859804.37898180005]
[null,"1.60.40: Andel af central administration af sundhed (til og med 2019)",0,0,0,0]
[null,"1.60.41: Andel af øvrige udgifter og indtægter",0,0,0,0]
[null,"1.50.33: Andel af central administration af sundhed (ekskl. psykiatri)",0,0,0,0]
[null,"1.50.35: Administration af det psykiatriske område (kun central del)",0,0,0,0]
[null,"I alt",863932.48494379641,837262.5199010449,1183947.0588799999,859804.37898180005]
[]
[null,"Skema 4: Udgifter og indtægter til og fra psykiatriske afdelinger konteret på somatiske sygehuse. (1.000 kr.)"]
[null,null,2023,2022,2021,2020]
[null,"Korrektion",0,0,0,0]
[null,"Lønudg. på psyk. afd.,somatiske sygehuse",0,0,0,0]
[null,"Øvrige udg. til psyk. afd.,somatiske sygehuse",0,0,0,0]
[null,"I alt",0,0,0,0]
[]
[null,"Skema 5: Leasing- og huslejeudgifter. (1.000 kr.)"]
[null,null,2023,2022,2021,2020]
[null,"Andre udgifter",0,0,0,0]
[null,"Leasing- og lejeudgifter",71944.366097619568,54580.400230485378,49162.352517684303,72084.564465826144]
[null,"Huslejeudgifter",52472.5679737627,46339.390231065132,33744.262624319337,34062.611348898907]
[null,"I alt",124416.93407138227,100919.79046155051,82906.615142003648,106147.17581472505]
[]
[null,"Skema 6: Udgifter til andet end patientbehandling. (1.000 kr.)"]
[null,null,2023,2022,2021,2020]
[null,"Skema 6.1: Center for voldsramte (Bispebjerg)",0,0,0,0]
[null,"Skema 6.2: Ventilatørbistand i hjemmet, respiratorpatienter",0,0,0,0]
[null,"Skema 6.3: Blodprøvetagning i eget hjem",6205.5417201909986,6147.76354880894,5707.6311205649163,5752.6080937000015]
[null,"Skema 6.4: Psykinfo + pårørende",0,0,0,0]
[null,"Skema 6.5: Leveret udstyr til patienter i eget hjem, ilt og sonderemedier",4279.8043969627142,3841.1093823000001,4508.2156528699998,6623.3349420800005]
[null,"Skema 6.6: Montebello (Nordsjællands Hospitaler)",0,0,0,0]
[null,"Skema 6.7: Satspulje korrektioner mellem år",0,0,0,0]
[null,"Skema 6.8: Klinisk farmakologisk rådgivning af praksissektoren",0,0,0,0]
[null,"Skema 6.9: Tandregulering ifm. operation",0,0,0,0]
[null,"Skema 6.10: Giftlinjen",0,0,0,0]
[null,"Skema 6.11: Tjenestemandspensioner",325415.667346537,324018.17857852799,696143.13751000003,453549.15623000002]
[null,"Skema 6.12: Art 4.6 Betalinger til staten",0,0,0,0]
[null,"Skema 6.13: Art 4.7 Betalinger til kommuner",60538.271639999999,48092.775079999999,52128.678189999999,66893.096770000004]
[null,"Skema 6.14: Art 4.8 Betalinger til andre regioner",2222401.8602100001,2429323.2609999999,2211092.2142599998,2320087.4383299998]
[null,"Skema 6.15: Art 7.6 Betalinger fra staten",-214307.12798547401,-218500.85373078601,-226005.13529999999,-233714.95653]
[null,"Skema 6.16: Art 7.7 Betalinger fra kommuner",-60494.98631,-65615.486199999999,-67009.187919999997,-64605.894650000002]
[null,"Skema 6.17: Art 7.8 Betalinger fra andre regioner",-115413.318,-104875.526,-106857.17049999999,-85278.774399999995]
[null,"Skema 6.18: Betalinger til selvejende, private og udenlandske sygehuse",585387.85647,574380.86424000002,490334.04732000001,347810.04028000002]
[null,"Skema 6.19: Dækningsafgift/ejendomsskat",7369.9392619585315,16527.766284252473,15284.337444109249,21388.05178731128]
[null,"Skema 6.20: Forsikringer/erstatninger",179697.10939504264,218841.23991314342,142510.48925615073,214915.04375132281]
[null,"Skema 6.21: Vederlagsfri Lab. –ydelser og andre ydelser til praksissektoren",209741.58279640248,203203.9735927172,199108.62042467893,190440.25511256288]
[null,"Skema 6.22: Patienttransport",797222.16784023005,781175.81826554995,800281.80561000004,708456.90954999998]
[null,"Skema 6.23: Serviceydelser til/fra andre institutioner eller sygehuse udenfor regionen",3263.1003716,2628.2063484,2701.8137929000004,2626.2754928999993]
[null,"Skema 6.24: Udgifter til eksternt finansierede forskning",-901.02245999999991,177.06858999999997,-1000.2687100000001,468.19336999999996]
[null,"Skema 6.25: Forebyggelse rettet mod praksissektoren og kommuner",0,0,3.2240000000000002,239.93113]
[null,"Skema 6.26: Praksisreservelæger",0,0,0,0]
[null,"Skema 6.27: Præhospital",1009.0384283999999,979.55400000000009,2497.8819070999998,2239.0011155000002]
[null,"Skema 6.28: Udgifter til Danske Regioner (Kontigent, MedCom, Fællesproj.)",66197.464314818193,67655.053564510396,66252.800409999996,54784.124190000002]
[null,"Skema 6.29: Hospice",0,0,0,0]
[null,"Skema 6.30: Konsulenter(Praksis)",2258.6253697527745,1980.5926800000002,4161.1041672831307,1044.98164]
[null,"Skema 6.31: Videnskabsetisk Komité",0,0,0,0]
[null,"Skema 6.32: Tolkebistand",2469.8021600000002,2129.4915900000001,1997.3594399999997,1928.0194799999997]
[null,"Skema 6.33: Dansk Center for Partikelterapi",0,0,0,0]
[null,"Skema 6.34: Politisk organisation – overførte udgifter fra funktion 4.10.01, 4.10.02 og 4.10.04",14228.9340365631,14758.606878504301,15346.49001,13254.45449]
[null,"Skema 6.35: Øvrige udgifter, Region Sjælland",26582.377036766899,34718.737282124101,63711.901609999899,31214.220820000002]
[null,"Skema 6.36: Sundhedsydelser ifm. specialsektor",0,0,0,0]
[null,"Skema 6.37: Udgifter til primær sundhed fra skema 2",379761.46346300101,797946.91908643895,979701.97820000001,451374.79960000003]
[null,"Skema 6.38: Udgifter til primær sundhed fra skema 3",219053.05834253499,209528.770589675,200963.29078000001,178504.90182]
[null,"Skema 6.39: Særlige udgifter ifm. COVID-19",0,113927.86078380572,-20947.42974181805,392615.11981804779]
[null,"Skema 6.40: Udleveret udstyr/tilbehør ifm. cochlear implantater",0,0,0,0]
[null,"Skema 6.41: Luxturna-behandling, Rigshospitalet",0,0,0,0]
[null,"Skema 6.42: Udleveret medicin",232697.35067000001,222772.09338000003,225777.58235647998,0]
[null,"Skema 6.43: Udgifter ifm. sundhedsklynger",503,0,0,0]
[null,"Skema 6.44: Ukrainske patienter under særlov eller asyl",0,0,0,0]
[null,"Skema 6.45: Udgifter ifm. de særlige pladser i psykiatrien",0,0,0,0]
[null,"Skema 6.46: Sikringsafdelingen, Region Sjælland",0,0,0,0]
[null,"Skema 6.47: Øvrige (Kan kun benyttes efter aftale med Sundhedsdatastyrelsen)",0,0,0,0]
[null,"Lukkede poster (må kun bruges af Sundhedsdatastyrelsen)",0,0,0,0]
[null,"I alt",4955167.5605152873,5685763.8387279715,5758395.4112903187,5082610.3322334252]

{"sheet":"Rapport SGH","index":8,"n_rows":21,"n_cols":9,"rows_kept":21,"cut":false,"hidden":false,"merged":[]}
[2023,"Skema 1","Skema 2","Skema 3","Skema 4","Skema 5","Skema 6","Skema 7","I alt"]
["Sjællands Universitetshospital",4942933.9361400008,248345.94113902573,261465.71746755499,0,58992.244599094498,341302.39046343678,64279.73255572941,{"$f":"(SUM(B2:D2))-(SUM(E2:H2))","v":4988171.2271283204}]
["Holbæk Sygehus",1287004.3524399998,74801.974722280283,74920.984087099598,0,10434.636288287191,51751.413918088714,-26156.524725904197,{"$f":"(SUM(B3:D3))-(SUM(E3:H3))","v":1400697.785768908}]
["Næstved, Slagelse og Ringsted Sygehuse",2097605.6188699999,136680.7151612895,117145.40007536999,0,48101.810000000005,89659.318525387542,-4762.9972593716957,2218433.6028406434]
["Nykøbing F.  Sygehus",935898.6100000001,56692.986945160053,51728.380303622798,0,6888.2431840005784,13143.734831216127,-24899.755077454403,1049187.7543110207]
["Sygehus Nord",0,0,0,0,0,0,0,0]
["Sygehus Syd",0,0,0,0,0,0,0,0]
["Garantiklinikken",0,0,0,0,0,0,0,0]
["Øvrige i Region Sjælland",0,0,0,0,0,0,0,0]
["Ikke fordelte udgifter og indtægter",0,4100638.6990134092,358672.003010149,0,0,4459310.7027771585,0,-7.5360015034675598E-4]
[null,null,null,null,null,null,null,null,{"$f":"B11+C11+D11-E11-F11-G11-H11","v":0}]
[2022]
["Sjællands Universitetshospital",4821877.7718099998,204021.04548563116,244166.816799742,0,39727.838855024718,528072.82477738964,25982.736000000004,{"$f":"(SUM(B13:D13))-(SUM(E13:H13))","v":4676282.2344629597}]
["Holbæk Sygehus",1343307.5204499997,70281.88515519278,77112.207855941801,0,9907.4083156034922,117838.69719841721,-7921.6549999999988,1370877.1629471136]
["Næstved, Slagelse og Ringsted Sygehuse",2148608.48704,127486.44218669261,115937.23109742699,0,46153.9972909223,211370.011,44032.065999999992,2090476.0860331976]
["Nykøbing F.  Sygehus",921908.80899999989,50872.007112026986,48740.246989942098,0,5130.5460000000003,51527.987000000001,-53057.546000000002,1017920.076101969]
["Sygehus Nord",0,0,0,0,0,0,0,0]
["Sygehus Syd",0,0,0,0,0,0,0,0]
["Garantiklinikken",0,0,0,0,0,0,0,0]
["Øvrige i Region Sjælland",0,0,0,0,0,0,0,0]
["Ikke fordelte udgifter og indtægter",0,4425648.3014641125,351306.017157992,0,0,4776954.318752165,0,-1.3006012886762619E-4]

{"sheet":"Afstemning af ikke fordelte","index":9,"n_rows":9,"n_cols":2,"rows_kept":9,"cut":false,"hidden":false,"merged":[]}
["Afstemning af Ikke fordelte indtægter- og udgifter"]
["1.000 kr.","2023"]
["Skema 1",0]
["Skema 2",4100638.6990134092]
["Skema 3",358672.003010149]
["Skema 4",0]
["Skema 5",0]
["Skema 6",4459310.7027771585]
["1+2+3-4-5-6",{"$f":"+B3+B4+B5-B6-B7-B8","v":-7.5360015034675598E-4}]

{"sheet":"Afstemning øvrige region","index":10,"n_rows":9,"n_cols":2,"rows_kept":9,"cut":false,"hidden":false,"merged":[]}
["Afstemning af Øvrige i Region Sjælland"]
["1.000 kr.","2023"]
["Skema 1",0]
["Skema 2",0]
["Skema 3",0]
["Skema 4",0]
["Skema 5",0]
["Skema 6",0]
["1+2+3-4-5-6",{"$f":"+B3+B4+B5-B6-B7-B8","v":0}]